Workbook

Sheet UserInput
B1: Version 2.05 | C1: LOSS SNAPSHOT: | D1: Loss at 5GHz: | E1: =CONCATENATE(" ",ROUND(U60,2)," dB") -> 10.8 dB | I1: Loss at 14GHz: | J1: =CONCATENATE(" ",ROUND(U96,2)," dB") -> 26.7 dB | N1: Loss at 25.78GHz: | O1: =CONCATENATE(" ",ROUND(U143,2)," dB") -> 45.57 dB
B2: Backplane/Trace Material | H2: Linecard A Material | L2: =IF(AND(NOT(J3=0),NOT(P3=0),D3=0),CONCATENATE("1 connector included - ",ROUND(T60,3),"dB loss at 5G - ",ROUND(T91,3),"dB loss at 12.75G - ",ROUND(T96,3),"dB loss at 14G"),"") -> 1 connector included - 0.616dB loss at 5G - 1.123dB loss at 12.75G - 1.21dB loss at 14G | N2: Linecard B Material
B3: Length (inch) | F3: =IF(AND(J3=0,P3=0,NOT(D3=0)),"no connector included",IF(AND(NOT(J3=0),NOT(P3=0),NOT(D3=0)),CONCATENATE("2 connectors - loss at each - ",ROUND(T60,3),"dB loss at 5G - ",ROUND(T91,3),"dB loss at 12.75G - ",ROUND(T96,3),"dB loss at 14G"),"")) ->  | H3: Length (inch) | J3: 2 | N3: Length (inch) | P3: 15
B4: Trace Width (mil) | H4: Trace Width (mil) | J4: 4 | N4: Trace Width (mil) | P4: 4
B5: Cu Thickness (mil) | H5: Cu Thickness (mil) | J5: 0.6 | N5: Cu Thickness (mil) | P5: 0.6
B6: Diel. Thickness (mil) | H6: Diel. Thickness (mil) | J6: 8.82 | N6: Diel. Thickness (mil) | P6: 8.82
B7: Freq | C7: Dk | D7: Df | H7: Freq | I7: Dk | J7: Df | N7: Freq | O7: Dk | P7: Df
B8: 100000000 | H8: 100000000 | I8: 3.6 | J8: 0.0092 | N8: 100000000 | O8: 3.6 | P8: 0.0092
B9: 1000000000 | H9: 1000000000 | I9: 3.6 | J9: 0.0092 | N9: 1000000000 | O9: 3.6 | P9: 0.0092
B10: 2000000000 | H10: 2000000000 | I10: 3.5 | J10: 0.0115 | N10: 2000000000 | O10: 3.5 | P10: 0.0115
B11: 5000000000 | H11: 5000000000 | I11: 3.5 | J11: 0.0115 | N11: 5000000000 | O11: 3.5 | P11: 0.0115
B12: 10000000000 | H12: 10000000000 | I12: 3.4 | J12: 0.0125 | N12: 10000000000 | O12: 3.4 | P12: 0.0125
B13: 30000000000 | H13: 30000000000 | I13: 3.2 | J13: 0.014 | N13: 30000000000 | O13: 3.2 | P13: 0.014
C14: 0 | D14: 0 | H14: Medium Roughness | I14: 31 | J14: 6.000000212e-07 | N14: Low Roughness | O14: 20 | P14: 6.000000212e-07
B29: DK fit to Second Order Equation | C29: c2 | D29: =IF(D$3,INDEX(LINEST(C9:C13,B9:B13^{1,2}),1),"n/a") -> n/a | H29: DK fit to Second Order Equation | I29: c2 | J29: =IF($J$3=0,"n/a", INDEX(LINEST(I9:I13,H9:H13^{1,2}),1)) -> 2.939183317e-22 | N29: DK fit to Second Order Equation | O29: c2 | P29: =IF($P$3=0,"n/a", INDEX(LINEST(O9:O13,N9:N13^{1,2}),1) ) -> 2.939183317e-22
C30: c1 | D30: =IF(D$3,INDEX(LINEST(C9:C13,B9:B13^{1,2}),1,2),"n/a") -> n/a | I30: c1 | J30: =IF($J$3=0,"n/a", INDEX(LINEST(I9:I13,H9:H13^{1,2}),1,2)) -> -2.175480302e-11 | O30: c1 | P30: =IF($P$3=0,"n/a", INDEX(LINEST(O9:O13,N9:N13^{1,2}),1,2) ) -> -2.175480302e-11
C31: b | D31: =IF(D$3,INDEX(LINEST(C9:C13,B9:B13^{1,2}),1,3),"n/a") -> n/a | I31: b | J31: =IF($J$3=0,"n/a", INDEX(LINEST(I9:I13,H9:H13^{1,2}),1,3)) -> 3.588298933 | O31: b | P31: =IF($P$3=0,"n/a", INDEX(LINEST(O9:O13,N9:N13^{1,2}),1,3) ) -> 3.588298933
B32: Df fit to Second Order Equation | C32: c2 | D32: =IF(D$3,INDEX(LINEST(D8:D13,B8:B13^{1,2}),1),"n/a") -> n/a | H32: Df fit to Second Order Equation | I32: c2 | J32: =IF($J$3=0,"n/a", INDEX(LINEST(J8:J13,H8:H13^{1,2}),1)) -> -9.089733008e-24 | N32: Df fit to Second Order Equation | O32: c2 | P32: =IF($P$3=0,"n/a", INDEX(LINEST(P8:P13,N8:N13^{1,2}),1) ) -> -9.089733008e-24
C33: c1 | D33: =IF(D$3,INDEX(LINEST(D8:D13,B8:B13^{1,2}),1,2),"n/a") -> n/a | I33: c1 | J33: =IF($J$3=0,"n/a", INDEX(LINEST(J8:J13,H8:H13^{1,2}),1,2) ) -> 4.220347685e-13 | O33: c1 | P33: =IF($P$3=0,"n/a", INDEX(LINEST(P8:P13,N8:N13^{1,2}),1,2) ) -> 4.220347685e-13
C34: b | D34: =IF(D$3,INDEX(LINEST(D8:D13,B8:B13^{1,2}),1,3),"n/a") -> n/a | I34: b | J34: =IF($J$3=0,"n/a", INDEX(LINEST(J8:J13,H8:H13^{1,2}),1,3) ) -> 0.009493773922 | O34: b | P34: =IF($P$3=0,"n/a", INDEX(LINEST(P8:P13,N8:N13^{1,2}),1,3) ) -> 0.009493773922
A35: δ (m) | B35: Zo | C35: Dk | D35: Df | E35: αcond | F35: αdiel | G35: Ksnowballs | H35: Zo | I35: Dk | J35: Df | K35: αcond | L35: αdiel | M35: Ksnowballs | N35: Zo | O35: Dk | P35: Df | Q35: αcond | R35: αdiel | S35: Ksnowballs | T35: Conn. Loss | U35: Atotal (dB) | V35: Frequency (GHz)
A36: =SQRT(1/(PI()*59600000*0.00000125663))*SQRT(1/($V36*1000000000)) -> 2.061570647e-05 | B36: =IF($D$3=0,"n/a",94.15/( SQRT($C36)*( (($D$4/$D$6)/(1-$D$5/$D$6)) + ((((2/(1-$D$5/$D$6))*LN((1/(1-$D$5/$D$6))+1))-(((1/(1-$D$5/$D$6))-1)*LN((1/((1-$D$5/$D$6)^2))-1)))/PI() ) ) ) ) -> n/a | C36: =IF($D$3=0,"n/a",$D$29*(V36*10^9)^2 + $D$30*(V36*10^9) + $D$31) -> n/a | D36: =IF($D$3=0,"n/a",$D$32*(V36*10^9)^2 + $D$33*(V36*10^9) + $D$34) -> n/a | E36: =IF($D$3=0,"n/a", IF( 1/(SQRT(PI()*(4*PI()*10^-7*0.999994)*59600000*$V36*10^9)) >= $D$5*0.0000254, (20*LOG(EXP(1))/2) * ((1/59600000)*39.3700787/($D$5*0.001)*(1/(0.001*$D$4)+1/(6*0.001*($D$6-$D$5)/2))) * (1/$B36), (20*LOG(EXP(1))/2) * ((SQRT(PI()*(4*PI()*10^-7*0.999994)/59600000)*SQRT($V36*10^9)*(1/(0.001*$D$4)+1/(6*0.001*($D$6-$D$5)/2))))/2 * (1/$B36) ) ) -> n/a | F36: =IF($D$3=0,"n/a", ( (20*LOG(EXP(1))/2) * 2*PI()*$V36*10^9 * $D36 *SQRT($C36) ) / (299792458*39.3700787 ) ) -> n/a | G36: =IF($D$3=0,"n/a",1 + ((3/2)*($C$14)*4*PI()*($D$14)^2)/(0.0000094*0.00000814)/(1+$A36/$D$14+$A36^2/2/($D$14)^2)) -> n/a | H36: =IF($J$3=0,"n/a", 94.15/( SQRT($I36)*( (($J$4/$J$6)/(1-$J$5/$J$6)) + ((((2/(1-$J$5/$J$6))*LN((1/(1-$J$5/$J$6))+1))-(((1/(1-$J$5/$J$6))-1)*LN((1/((1-$J$5/$J$6)^2))-1)))/PI() ) ) )) -> 48.32830195 | I36: =IF($J$3=0,"n/a", $J$29*(V36*10^9)^2 + $J$30*(V36*10^9) + $J$31) -> 3.588081414 | J36: =IF($J$3=0,"n/a", $J$32*(V36*10^9)^2 + $J$33*(V36*10^9) + $J$34) -> 0.009497993361 | K36: =IF($J$3=0,"n/a", IF( 1/(SQRT(PI()*(4*PI()*10^-7*0.999994)*59600000*$V36*10^9)) >= $J$5*0.0000254, (20*LOG(EXP(1))/2) * ((1/59600000)*39.3700787/($J$5*0.001)*(1/(0.001*$J$4)+1/(6*0.001*($J$6-$J$5)/2))) * (1/$H36), (20*LOG(EXP(1))/2) * ((SQRT(PI()*(4*PI()*10^-7*0.999994)/59600000)*SQRT($V36*10^9)*(1/(0.001*$J$4)+1/(6*0.001*($J$6-$J$5)/2))))/2 * (1/$H36) )) -> 0.02874581792 | L36: =IF($J$3=0,"n/a", ( (20*LOG(EXP(1))/2) * 2*PI()*$V36*10^9 * $J36 *SQRT($I36) ) / (299792458*39.3700787 )) -> 0.0004159491104 | M36: =IF($J$3=0,"n/a", 1 + ((3/2)*($I$14)*4*PI()*($J$14)^2)/(0.0000094*0.00000814)/(1+$A36/$J$14+$A36^2/2/($J$14)^2) ) -> 1.004394236 | N36: =IF($P$3=0,"n/a", 94.15/( SQRT($O36)*( (($P$4/$P$6)/(1-$P$5/$P$6)) + ((((2/(1-$P$5/$P$6))*LN((1/(1-$P$5/$P$6))+1))-(((1/(1-$P$5/$P$6))-1)*LN((1/((1-$P$5/$P$6)^2))-1)))/PI() ) ) ) ) -> 48.32830195 | O36: =IF($P$3=0,"n/a", $P$29*(V36*10^9)^2 + $P$30*(V36*10^9) + $P$31 ) -> 3.588081414 | P36: =IF($P$3=0,"n/a", $P$32*(V36*10^9)^2 + $P$33*(V36*10^9) + $P$34 ) -> 0.009497993361 | Q36: =IF($P$3=0,"n/a", IF( 1/(SQRT(PI()*(4*PI()*10^-7*0.999994)*59600000*$V36*10^9)) >= $P$5*0.0000254, (20*LOG(EXP(1))/2) * ((1/59600000)*39.3700787/($P$5*0.001)*(1/(0.001*$P$4)+1/(6*0.001*($P$6-$P$5)/2))) * (1/$N36), (20*LOG(EXP(1))/2) * ((SQRT(PI()*(4*PI()*10^-7*0.999994)/59600000)*SQRT($V36*10^9)*(1/(0.001*$P$4)+1/(6*0.001*($P$6-$P$5)/2))))/2 * (1/$N36) )) -> 0.02874581792 | R36: =IF($P$3=0,"n/a", ( (20*LOG(EXP(1))/2) * 2*PI()*$V36*10^9 * $P36 *SQRT($O36) ) / (299792458*39.3700787 ) ) -> 0.0004159491104 | S36: =IF($P$3=0,"n/a", 1 + ((3/2)*($O$14)*4*PI()*($P$14)^2)/(0.0000094*0.00000814)/(1+$A36/$P$14+$A36^2/2/($P$14)^2) ) -> 1.002834991 | T36: =IF(OR(AND(NOT($D$3=0),NOT($J$3=0),NOT($P$3=0)),AND($J$3=0, P$3=0,NOT(D$3=0)), AND(D$3=0, NOT(J$3=0),NOT(P$3=0))), 0.000009*SQRT($V36*1000000000)-0.000000000012*($V36*1000000000)+1.6E-21*($V36*1000000000)^2,0) -> 0.02834065894 | U36: =IF(NOT($E36="n/a"),F36*$D$3 + E36*G36*$D$3,0) + IF(NOT(K36="n/a"),(L36 + K36*M36)*$J$3,0) + IF(NOT(Q36="n/a"),(R36 + Q36*S36)*$P$3,0) + IF(OR(AND($J$3=0, P$3=0,NOT(D$3=0)), AND(NOT($J$3=0), NOT(P$3=0),NOT(D$3=0)) ),2,IF(AND($D$3=0, NOT(J$3=0),NOT(P$3=0)),1,0))*$T36 -> 0.5255657424 | V36: 0.01
A37: =SQRT(1/(PI()*59600000*0.00000125663))*SQRT(1/($V37*1000000000)) -> 9.219624214e-06 | B37: =IF($D$3=0,"n/a",94.15/( SQRT($C37)*( (($D$4/$D$6)/(1-$D$5/$D$6)) + ((((2/(1-$D$5/$D$6))*LN((1/(1-$D$5/$D$6))+1))-(((1/(1-$D$5/$D$6))-1)*LN((1/((1-$D$5/$D$6)^2))-1)))/PI() ) ) ) ) -> n/a | C37: =IF($D$3=0,"n/a",$D$29*(V37*10^9)^2 + $D$30*(V37*10^9) + $D$31) -> n/a | D37: =IF($D$3=0,"n/a",$D$32*(V37*10^9)^2 + $D$33*(V37*10^9) + $D$34) -> n/a | E37: =IF($D$3=0,"n/a", IF( 1/(SQRT(PI()*(4*PI()*10^-7*0.999994)*59600000*$V37*10^9)) >= $D$5*0.0000254, (20*LOG(EXP(1))/2) * ((1/59600000)*39.3700787/($D$5*0.001)*(1/(0.001*$D$4)+1/(6*0.001*($D$6-$D$5)/2))) * (1/$B37), (20*LOG(EXP(1))/2) * ((SQRT(PI()*(4*PI()*10^-7*0.999994)/59600000)*SQRT($V37*10^9)*(1/(0.001*$D$4)+1/(6*0.001*($D$6-$D$5)/2))))/2 * (1/$B37) ) ) -> n/a | F37: =IF($D$3=0,"n/a", ( (20*LOG(EXP(1))/2) * 2*PI()*$V37*10^9 * $D37 *SQRT($C37) ) / (299792458*39.3700787 ) ) -> n/a | G37: =IF($D$3=0,"n/a",1 + ((3/2)*($C$14)*4*PI()*($D$14)^2)/(0.0000094*0.00000814)/(1+$A37/$D$14+$A37^2/2/($D$14)^2)) -> n/a | H37: =IF($J$3=0,"n/a", 94.15/( SQRT($I37)*( (($J$4/$J$6)/(1-$J$5/$J$6)) + ((((2/(1-$J$5/$J$6))*LN((1/(1-$J$5/$J$6))+1))-(((1/(1-$J$5/$J$6))-1)*LN((1/((1-$J$5/$J$6)^2))-1)))/PI() ) ) )) -> 48.33415863 | I37: =IF($J$3=0,"n/a", $J$29*(V37*10^9)^2 + $J$30*(V37*10^9) + $J$31) -> 3.587211927 | J37: =IF($J$3=0,"n/a", $J$32*(V37*10^9)^2 + $J$33*(V37*10^9) + $J$34) -> 0.009514852936 | K37: =IF($J$3=0,"n/a", IF( 1/(SQRT(PI()*(4*PI()*10^-7*0.999994)*59600000*$V37*10^9)) >= $J$5*0.0000254, (20*LOG(EXP(1))/2) * ((1/59600000)*39.3700787/($J$5*0.001)*(1/(0.001*$J$4)+1/(6*0.001*($J$6-$J$5)/2))) * (1/$H37), (20*LOG(EXP(1))/2) * ((SQRT(PI()*(4*PI()*10^-7*0.999994)/59600000)*SQRT($V37*10^9)*(1/(0.001*$J$4)+1/(6*0.001*($J$6-$J$5)/2))))/2 * (1/$H37) )) -> 0.02375547468 | L37: =IF($J$3=0,"n/a", ( (20*LOG(EXP(1))/2) * 2*PI()*$V37*10^9 * $J37 *SQRT($I37) ) / (299792458*39.3700787 )) -> 0.002083184789 | M37: =IF($J$3=0,"n/a", 1 + ((3/2)*($I$14)*4*PI()*($J$14)^2)/(0.0000094*0.00000814)/(1+$A37/$J$14+$A37^2/2/($J$14)^2) ) -> 1.02045208 | N37: =IF($P$3=0,"n/a", 94.15/( SQRT($O37)*( (($P$4/$P$6)/(1-$P$5/$P$6)) + ((((2/(1-$P$5/$P$6))*LN((1/(1-$P$5/$P$6))+1))-(((1/(1-$P$5/$P$6))-1)*LN((1/((1-$P$5/$P$6)^2))-1)))/PI() ) ) ) ) -> 48.33415863 | O37: =IF($P$3=0,"n/a", $P$29*(V37*10^9)^2 + $P$30*(V37*10^9) + $P$31 ) -> 3.587211927 | P37: =IF($P$3=0,"n/a", $P$32*(V37*10^9)^2 + $P$33*(V37*10^9) + $P$34 ) -> 0.009514852936 | Q37: =IF($P$3=0,"n/a", IF( 1/(SQRT(PI()*(4*PI()*10^-7*0.999994)*59600000*$V37*10^9)) >= $P$5*0.0000254, (20*LOG(EXP(1))/2) * ((1/59600000)*39.3700787/($P$5*0.001)*(1/(0.001*$P$4)+1/(6*0.001*($P$6-$P$5)/2))) * (1/$N37), (20*LOG(EXP(1))/2) * ((SQRT(PI()*(4*PI()*10^-7*0.999994)/59600000)*SQRT($V37*10^9)*(1/(0.001*$P$4)+1/(6*0.001*($P$6-$P$5)/2))))/2 * (1/$N37) )) -> 0.02375547468 | R37: =IF($P$3=0,"n/a", ( (20*LOG(EXP(1))/2) * 2*PI()*$V37*10^9 * $P37 *SQRT($O37) ) / (299792458*39.3700787 ) ) -> 0.002083184789 | S37: =IF($P$3=0,"n/a", 1 + ((3/2)*($O$14)*4*PI()*($P$14)^2)/(0.0000094*0.00000814)/(1+$A37/$P$14+$A37^2/2/($P$14)^2) ) -> 1.01319489 | T37: =IF(OR(AND(NOT($D$3=0),NOT($J$3=0),NOT($P$3=0)),AND($J$3=0, P$3=0,NOT(D$3=0)), AND(D$3=0, NOT(J$3=0),NOT(P$3=0))), 0.000009*SQRT($V37*1000000000)-0.000000000012*($V37*1000000000)+1.6E-21*($V37*1000000000)^2,0) -> 0.06304361031 | U37: =IF(NOT($E37="n/a"),F37*$D$3 + E37*G37*$D$3,0) + IF(NOT(K37="n/a"),(L37 + K37*M37)*$J$3,0) + IF(NOT(Q37="n/a"),(R37 + Q37*S37)*$P$3,0) + IF(OR(AND($J$3=0, P$3=0,NOT(D$3=0)), AND(NOT($J$3=0), NOT(P$3=0),NOT(D$3=0)) ),2,IF(AND($D$3=0, NOT(J$3=0),NOT(P$3=0)),1,0))*$T37 -> 0.5079742821 | V37: 0.05
A38: 6.519258801e-06 | B38: n/a | C38: n/a | D38: n/a | E38: n/a | F38: n/a | G38: n/a | H38: 48.34147355 | I38: 3.586126392 | J38: 0.009535886501 | K38: 0.0335902309 | L38: 0.004174947928 | M38: 1.038779502 | N38: 48.34147355 | O38: 3.586126392 | P38: 0.009535886501 | Q38: 0.0335902309 | R38: 0.004174947928 | S38: =IF($P$3=0,"n/a", 1 + ((3/2)*($O$14)*4*PI()*($P$14)^2)/(0.0000094*0.00000814)/(1+$A38/$P$14+$A38^2/2/($P$14)^2) ) -> 1.025019033 | T38: 0.088816 | U38: 0.7460351916 | V38: 0.1
A39: 5.322952521e-06 | B39: n/a | C39: n/a | D39: n/a | E39: n/a | F39: n/a | G39: n/a | H39: 48.34878189 | I39: 3.585042325 | J39: 0.009556874618 | K39: 0.04113324444 | L39: 0.006275256538 | M39: 1.05585154 | N39: 48.34878189 | O39: 3.585042325 | P39: 0.009556874618 | Q39: 0.04113324444 | R39: 0.006275256538 | S39: 1.036033252 | T39: 0.1084630384 | U39: 0.9412347334 | V39: 0.15
A40: 4.609812107e-06 | B40: n/a | C40: n/a | D40: n/a | E40: n/a | F40: n/a | G40: n/a | H40: 48.35608363 | I40: 3.583959729 | J40: 0.009577817286 | K40: 0.04748940755 | L40: 0.008384077764 | M40: 1.071974572 | N40: 48.35608363 | O40: 3.583959729 | P40: 0.009577817286 | Q40: 0.04748940755 | R40: 0.008384077764 | S40: 1.046435208 | T40: 0.1249432206 | U40: 1.114706238 | V40: 0.2
A41: 4.123141294e-06 | B41: n/a | C41: n/a | D41: n/a | E41: n/a | F41: n/a | G41: n/a | H41: 48.36337875 | I41: 3.582878602 | J41: 0.009598714506 | K41: 0.05308676293 | L41: 0.01050137878 | M41: 1.087323511 | N41: 48.36337875 | O41: 3.582878602 | P41: 0.009598714506 | Q41: 0.05308676293 | R41: 0.01050137878 | S41: 1.056337749 | T41: 0.1394024947 | U41: 1.27453418 | V41: 0.25
A42: 2.915501169e-06 | B42: n/a | C42: n/a | D42: n/a | E42: n/a | F42: n/a | G42: n/a | H42: 48.39975487 | I42: 3.577495011 | J42: 0.009702518873 | K42: 0.07501959474 | L42: 0.02121393397 | M42: 1.155632836 | N42: 48.39975487 | O42: 3.577495011 | P42: 0.009702518873 | Q42: 0.07501959474 | R42: 0.02121393397 | S42: 1.100408282 | T42: 0.195646118 | U42: 1.96795596 | V42: 0.5
A43: 2.380496736e-06 | B43: n/a | C43: n/a | D43: n/a | E43: n/a | F43: n/a | G43: n/a | H43: 48.43596411 | I43: 3.572148159 | J43: 0.009805187023 | K43: 0.09181117735 | L43: 0.03213357687 | M43: 1.214148829 | N43: 48.43596411 | O43: 3.572148159 | P43: 0.009805187023 | Q43: 0.09181117735 | R43: 0.03213357687 | S43: 1.138160535 | T43: 0.2383751509 | U43: 2.575028706 | V43: 0.75
A44: 2.061570647e-06 | B44: n/a | C44: n/a | D44: n/a | E44: n/a | F44: n/a | G44: n/a | H44: 48.4720051 | I44: 3.566838048 | J44: 0.009906718957 | K44: 0.1059355897 | L44: 0.04325623658 | M44: 1.26591429 | N44: 48.4720051 | O44: 3.566838048 | P44: 0.009906718957 | Q44: 0.1059355897 | R44: 0.04325623658 | S44: 1.171557607 | T44: 0.2742049894 | U44: 3.139416454 | V44: 1
A45: 1.843924843e-06 | B45: n/a | C45: n/a | D45: n/a | E45: n/a | F45: n/a | G45: n/a | H45: 48.50787646 | I45: 3.561564676 | J45: 0.01000711467 | K45: 0.1183520044 | L45: 0.05457785975 | M45: 1.312573378 | N45: 48.50787646 | O45: 3.561564676 | P45: 0.01000711467 | Q45: 0.1183520044 | R45: 0.05457785975 | S45: 1.201660244 | T45: 0.3056980515 | U45: 3.677496524 | V45: 1.25
A46: 1.683265384e-06 | B46: n/a | C46: n/a | D46: n/a | E46: n/a | F46: n/a | G46: n/a | H46: 48.54357683 | I46: 3.556328044 | J46: 0.01010637418 | K46: 0.129552778 | L46: 0.06609441051 | M46: 1.355167422 | N46: 48.54357683 | O46: 3.556328044 | P46: 0.01010637418 | Q46: 0.129552778 | R46: 0.06609441051 | S46: 1.229140272 | T46: 0.3341685012 | U46: 4.197482941 | V46: 1.5
A47: 1.558400926e-06 | B47: n/a | C47: n/a | D47: n/a | E47: n/a | F47: n/a | G47: n/a | H47: 48.57910484 | I47: 3.551128152 | J47: 0.01020449746 | K47: 0.1398306544 | L47: 0.07780187026 | M47: 1.394416288 | N47: 48.57910484 | O47: 3.551128152 | P47: 0.01020449746 | Q47: 0.1398306544 | R47: 0.07780187026 | S47: 1.254462122 | T47: 0.3603970119 | U47: 4.704176982 | V47: 1.75
A48: 1.457750584e-06 | B48: n/a | C48: n/a | D48: n/a | E48: n/a | F48: n/a | G48: n/a | H48: 48.61445912 | I48: 3.545965 | J48: 0.01030148453 | K48: 0.1493765461 | L48: 0.08969623756 | M48: 1.430846644 | N48: 48.61445912 | O48: 3.545965 | P48: 0.01030148453 | Q48: 0.1493765461 | R48: 0.08969623756 | S48: 1.277965577 | T48: 0.3848922359 | U48: 5.200669391 | V48: 2
A49: 1.374380431e-06 | B49: n/a | C49: n/a | D49: n/a | E49: n/a | F49: n/a | G49: n/a | H49: 48.6496383 | I49: 3.540838587 | J49: 0.01039733538 | K49: 0.1583231846 | L49: 0.101773528 | M49: 1.46485958 | N49: 48.6496383 | O49: 3.540838587 | P49: 0.01039733538 | Q49: 0.1583231846 | R49: 0.101773528 | S49: 1.299909406 | T49: 0.4080074841 | U49: 5.689086881 | V49: 2.25
A50: 1.30385176e-06 | B50: n/a | C50: n/a | D50: n/a | E50: n/a | F50: n/a | G50: n/a | H50: 48.68464103 | I50: 3.535748915 | J50: 0.01049205001 | K50: 0.1667673032 | L50: 0.1140297738 | M50: 1.496769883 | N50: 48.68464103 | O50: 3.535748915 | P50: 0.01049205001 | Q50: 0.1667673032 | R50: 0.1140297738 | S50: 1.320496699 | T50: 0.43 | U50: 6.17096581 | V50: 2.5
A51: 1.243173875e-06 | B51: n/a | C51: n/a | D51: n/a | E51: n/a | F51: n/a | G51: n/a | H51: 48.71946593 | I51: 3.530695982 | J51: 0.01058562843 | K51: 0.1747819989 | L51: 0.1264610242 | M51: 1.526830483 | N51: 48.71946593 | O51: 3.530695982 | P51: 0.01058562843 | Q51: 0.1747819989 | R51: 0.1264610242 | S51: 1.339890634 | T51: 0.4510639817 | U51: 6.647457811 | V51: 2.75
A52: 1.190248368e-06 | B52: n/a | C52: n/a | D52: n/a | E52: n/a | F52: n/a | G52: n/a | H52: 48.75411164 | I52: 3.525679789 | J52: 0.01067807063 | K52: 0.1824241173 | L52: 0.1390633447 | M52: 1.555248487 | N52: 48.75411164 | O52: 3.525679789 | P52: 0.01067807063 | Q52: 0.1824241173 | R52: 0.1390633447 | S52: 1.35822483 | T52: 0.4713503018 | U52: 7.119451314 | V52: 3
A53: 1.143553642e-06 | B53: n/a | C53: n/a | D53: n/a | E53: n/a | F53: n/a | G53: n/a | H53: 48.78857681 | I53: 3.520700335 | J53: 0.01076937661 | K53: 0.1897389114 | L53: 0.1518328173 | M53: 1.582196152 | N53: 48.78857681 | O53: 3.520700335 | P53: 0.01076937661 | Q53: 0.1897389114 | R53: 0.1518328173 | S53: 1.375610421 | T53: 0.4909789413 | U53: 7.587647542 | V53: 3.25
A54: 1.101955863e-06 | B54: n/a | C54: n/a | D54: n/a | E54: n/a | F54: n/a | G54: n/a | H54: 48.82286007 | I54: 3.515757622 | J54: 0.01085954638 | K54: 0.1967631102 | L54: 0.16476554 | M54: 1.607818643 | N54: 48.82286007 | O54: 3.515757622 | P54: 0.01085954638 | Q54: 0.1967631102 | R54: 0.16476554 | S54: 1.39214106 | T54: 0.5100471805 | U54: 8.052610227 | V54: 3.5
A55: 1.064590504e-06 | B55: n/a | C55: n/a | D55: n/a | E55: n/a | F55: n/a | G55: n/a | H55: 48.85696007 | I55: 3.510851648 | J55: 0.01094857993 | K55: 0.2035270165 | L55: 0.1778576273 | M55: 1.632239668 | N55: 48.85696007 | O55: 3.510851648 | P55: 0.01094857993 | Q55: 0.2035270165 | R55: 0.1778576273 | S55: 1.40789656 | T55: 0.5286351921 | U55: 8.514799392 | V55: 3.75
A56: 1.030785323e-06 | B56: n/a | C56: n/a | D56: n/a | E56: n/a | F56: n/a | G56: n/a | H56: 48.89087544 | I56: 3.505982414 | J56: 0.01103647727 | K56: 0.2100559828 | L56: 0.191105209 | M56: 1.655565684 | N56: 48.89087544 | O56: 3.505982414 | P56: 0.01103647727 | Q56: 0.2100559828 | R56: 0.191105209 | S56: 1.422945602 | T56: 0.5468099788 | U56: 8.974595039 | V56: 4
A57: 1.000008651e-06 | B57: n/a | C57: n/a | D57: n/a | E57: n/a | F57: n/a | G57: n/a | H57: 48.92460485 | I57: 3.50114992 | J57: 0.01112323839 | K57: 0.2163714782 | L57: 0.2045044311 | M57: 1.677889075 | N57: 48.92460485 | O57: 3.50114992 | P57: 0.01112323839 | Q57: 0.2163714782 | R57: 0.2045044311 | S57: 1.43734779 | T57: 0.5646282165 | U57: 9.432314214 | V57: 4.25
A58: 9.718337229e-07 | B58: n/a | C58: n/a | D58: n/a | E58: n/a | F58: n/a | G58: n/a | H58: 48.95814693 | I58: 3.496354165 | J58: 0.01120886329 | K58: 0.2224918767 | L58: 0.218051455 | M58: 1.69929062 | N58: 48.95814693 | O58: 3.496354165 | P58: 0.01120886329 | Q58: 0.2224918767 | R58: 0.218051455 | S58: 1.451155239 | T58: 0.5821383539 | U58: 9.888223593 | V58: 4.5
A59: 9.459134857e-07 | B59: n/a | C59: n/a | D59: n/a | E59: n/a | F59: n/a | G59: n/a | H59: 48.99150034 | I59: 3.491595151 | J59: 0.01129335197 | K59: 0.2284330502 | L59: 0.2317424574 | M59: 1.719841423 | N59: 48.99150034 | O59: 3.491595151 | P59: 0.01129335197 | Q59: 0.2284330502 | R59: 0.2317424574 | S59: 1.464413821 | T59: 0.5993821938 | U59: 10.34254895 | V59: 4.75
A60: 9.219624214e-07 | B60: n/a | C60: n/a | D60: n/a | E60: n/a | F60: n/a | G60: n/a | H60: 49.02466373 | I60: 3.486872876 | J60: 0.01137670444 | K60: 0.2342088235 | L60: 0.2455736305 | M60: 1.739604444 | N60: 49.02466373 | O60: 3.486872876 | P60: 0.01137670444 | Q60: 0.2342088235 | R60: 0.2455736305 | S60: 1.477164158 | T60: 0.6163961031 | U60: 10.79548243 | V60: 5
A61: 8.997431943e-07 | B61: n/a | C61: n/a | D61: n/a | E61: n/a | F61: n/a | G61: n/a | H61: 49.05763575 | I61: 3.482187341 | J61: 0.01145892069 | K61: 0.2398313274 | L61: 0.2595411813 | M61: 1.758635738 | N61: 49.05763575 | O61: 3.482187341 | P61: 0.01145892069 | Q61: 0.2398313274 | R61: 0.2595411813 | S61: 1.489442411 | T61: 0.6332119536 | U61: 11.24718818 | V61: 5.25
A62: 8.790566774e-07 | B62: n/a | C62: n/a | D62: n/a | E62: n/a | F62: n/a | G62: n/a | H62: 49.09041508 | I62: 3.477538546 | J62: 0.01154000073 | K62: 0.2453112775 | L62: 0.2736413319 | M62: 1.77698545 | N62: 49.09041508 | O62: 3.477538546 | P62: 0.01154000073 | Q62: 0.2453112775 | R62: 0.2736413319 | S62: 1.501280936 | T62: 0.6498578638 | U62: 11.69780681 | V62: 5.5
A63: 8.597343909e-07 | B63: n/a | C63: n/a | D63: n/a | E63: n/a | F63: n/a | G63: n/a | H63: 49.12300037 | I63: 3.47292649 | J63: 0.01161994454 | K63: 0.2506581967 | L63: 0.2878703192 | M63: 1.794698648 | N63: 49.12300037 | O63: 3.47292649 | P63: 0.01161994454 | Q63: 0.2506581967 | R63: 0.2878703192 | S63: 1.512708805 | T63: 0.66635879 | U63: 12.14745899 | V63: 5.75
A64: 8.416326922e-07 | B64: n/a | C64: n/a | D64: n/a | E64: n/a | F64: n/a | G64: n/a | H64: 49.15539027 | I64: 3.468351174 | J64: 0.01169875214 | K64: 0.2558805941 | L64: 0.3022243944 | M64: 1.811815996 | N64: 49.15539027 | O64: 3.468351174 | P64: 0.01169875214 | Q64: 0.2558805941 | R64: 0.3022243944 | S64: 1.523752256 | T64: 0.6827370023 | U64: 12.5962483 | V64: 6
A65: 8.246282587e-07 | B65: n/a | C65: n/a | D65: n/a | E65: n/a | F65: n/a | G65: n/a | H65: 49.18758348 | I65: 3.463812599 | J65: 0.01177642353 | K65: 0.2609861108 | L65: 0.3166998234 | M65: 1.828374326 | N65: 49.18758348 | O65: 3.463812599 | P65: 0.01177642353 | Q65: 0.2609861108 | R65: 0.3166998234 | S65: 1.534435049 | T65: 0.6990124735 | U65: 13.04426362 | V65: 6.25
A66: 8.086145351e-07 | B66: n/a | C66: n/a | D66: n/a | E66: n/a | F66: n/a | G66: n/a | H66: 49.21957864 | I66: 3.459310763 | J66: 0.0118529587 | K66: 0.2659816407 | L66: 0.3312928863 | M66: 1.844407113 | N66: 49.21957864 | O66: 3.459310763 | P66: 0.0118529587 | Q66: 0.2659816407 | R66: 0.3312928863 | S66: 1.544778782 | T66: 0.7152031973 | U66: 13.49158105 | V66: 6.5
A67: 7.934989119e-07 | B67: n/a | C67: n/a | D67: n/a | E67: n/a | F67: n/a | G67: n/a | H67: 49.25137445 | I67: 3.454845666 | J67: 0.01192835765 | K67: 0.2708734289 | L67: 0.3459998771 | M67: 1.859944882 | N67: 49.25137445 | O67: 3.454845666 | P67: 0.01192835765 | Q67: 0.2708734289 | R67: 0.3459998771 | S67: 1.55480315 | T67: 0.7313254526 | U67: 13.93826556 | V67: 6.75
A68: 7.792004631e-07 | B68: n/a | C68: n/a | D68: n/a | E68: n/a | F68: n/a | G68: n/a | H68: 49.28296957 | I68: 3.45041731 | J68: 0.01200262038 | K68: 0.2756671556 | L68: 0.3608171039 | M68: 1.875015549 | N68: 49.28296957 | O68: 3.45041731 | P68: 0.01200262038 | Q68: 0.2756671556 | R68: 0.3608171039 | S68: 1.564526161 | T68: 0.7473940239 | U68: 14.38437235 | V68: 7
A69: 7.656481169e-07 | B69: n/a | C69: n/a | D69: n/a | E69: n/a | F69: n/a | G69: n/a | H69: 49.31436269 | I69: 3.446025693 | J69: 0.0120757469 | K69: 0.2803680055 | L69: 0.3757408884 | M69: 1.889644718 | N69: 49.31436269 | O69: 3.446025693 | P69: 0.0120757469 | Q69: 0.2803680055 | R69: 0.3757408884 | S69: 1.573964334 | T69: 0.7634223865 | U69: 14.82994795 | V69: 7.25
A70: 7.527791648e-07 | B70: n/a | C70: n/a | D70: n/a | E70: n/a | F70: n/a | G70: n/a | H70: 49.34555249 | I70: 3.441670816 | J70: 0.0121477372 | K70: 0.2849807267 | L70: 0.3907675661 | M70: 1.90385593 | N70: 49.34555249 | O70: 3.441670816 | P70: 0.0121477372 | Q70: 0.2849807267 | R70: 0.3907675661 | S70: 1.583132858 | T70: 0.7794228634 | U70: 15.27503126 | V70: 7.5
A71: 7.405380374e-07 | B71: n/a | C71: n/a | D71: n/a | E71: n/a | F71: n/a | G71: n/a | H71: 49.37653767 | I71: 3.437352679 | J71: 0.01221859129 | K71: 0.2895096814 | L71: 0.4058934856 | M71: 1.917670885 | N71: 49.37653767 | O71: 3.437352679 | P71: 0.01221859129 | Q71: 0.2895096814 | R71: 0.4058934856 | S71: 1.592045732 | T71: 0.7954067588 | U71: 15.71965438 | V71: 7.75
A72: 7.288752921e-07 | B72: n/a | C72: n/a | D72: n/a | E72: n/a | F72: n/a | G72: n/a | H72: 49.40731692 | I72: 3.433071282 | J72: 0.01228830916 | K72: 0.2939588889 | L72: 0.4211150089 | M72: 1.931109632 | N72: 49.40731692 | O72: 3.433071282 | P72: 0.01228830916 | Q72: 0.2939588889 | R72: 0.4211150089 | S72: 1.600715891 | T72: 0.8113844719 | U72: 16.16384328 | V72: 8
A73: 7.177467716e-07 | B73: n/a | C73: n/a | D73: n/a | E73: n/a | F73: n/a | G73: n/a | H73: 49.43788894 | I73: 3.428826624 | J73: 0.01235689081 | K73: 0.2983320624 | L73: 0.436428511 | M73: 1.944190733 | N73: 49.43788894 | O73: 3.428826624 | P73: 0.01235689081 | Q73: 0.2983320624 | R73: 0.436428511 | S73: 1.609155311 | T73: 0.8273655956 | U73: 16.60761849 | V73: 8.25
A74: 7.071128982e-07 | B74: n/a | C74: n/a | D74: n/a | E74: n/a | F74: n/a | G74: n/a | H74: 49.46825242 | I74: 3.424618706 | J74: 0.01242433624 | K74: 0.3026326414 | L74: 0.4518303797 | M74: 1.95693141 | N74: 49.46825242 | O74: 3.424618706 | P74: 0.01242433624 | Q74: 0.3026326414 | R74: 0.4518303797 | S74: 1.617375103 | T74: 0.8433590012 | U74: 17.05099559 | V74: 8.5
A75: 6.969380814e-07 | B75: n/a | C75: n/a | D75: n/a | E75: n/a | F75: n/a | G75: n/a | H75: 49.49840608 | I75: 3.420447529 | J75: 0.01249064546 | K75: 0.3068638192 | L75: 0.4673170156 | M75: 1.969347671 | N75: 49.49840608 | O75: 3.420447529 | P75: 0.01249064546 | Q75: 0.3068638192 | R75: 0.4673170156 | S75: 1.625385594 | T75: 0.859372912 | U75: 17.49398574 | V75: 8.75
A76: 6.871902156e-07 | B76: n/a | C76: n/a | D76: n/a | E76: n/a | F76: n/a | G76: n/a | H76: 49.52834863 | I76: 3.41631309 | J76: 0.01255581846 | K76: 0.3110285677 | L76: 0.4828848318 | M76: 1.981454425 | N76: 49.52834863 | O76: 3.41631309 | P76: 0.01255581846 | Q76: 0.3110285677 | R76: 0.4828848318 | S76: 1.633196403 | T76: 0.8754149682 | U76: 17.93659604 | V76: 9
A77: 6.778402532e-07 | B77: n/a | C77: n/a | D77: n/a | E77: n/a | F77: n/a | G77: n/a | H77: 49.55807877 | I77: 3.412215392 | J77: 0.01261985525 | K77: 0.3151296582 | L77: 0.4985302537 | M77: 1.993265578 | N77: 49.55807877 | O77: 3.412215392 | P77: 0.01261985525 | Q77: 0.3151296582 | R77: 0.4985302537 | S77: 1.640816502 | T77: 0.8914922828 | U77: 18.37882995 | V77: 9.25
A78: 6.688618402e-07 | B78: n/a | C78: n/a | D78: n/a | E78: n/a | F78: n/a | G78: n/a | H78: 49.58759525 | I78: 3.408154433 | J78: 0.01268275582 | K78: 0.3191696804 | L78: 0.5142497189 | M78: 2.004794126 | N78: 49.58759525 | O78: 3.408154433 | P78: 0.01268275582 | Q78: 0.3191696804 | R78: 0.5142497189 | S78: 1.648254275 | T78: 0.907611491 | U78: 18.82068756 | V78: 9.5
A79: 6.602310032e-07 | B79: n/a | C79: n/a | D79: n/a | E79: n/a | F79: n/a | G79: n/a | H79: 49.61689677 | I79: 3.404130215 | J79: 0.01274452017 | K79: 0.3231510588 | L79: 0.530039677 | M79: 2.016052228 | N79: 49.61689677 | O79: 3.404130215 | P79: 0.01274452017 | Q79: 0.3231510588 | R79: 0.530039677 | S79: 1.655517567 | T79: 0.9237787946 | U79: 19.26216595 | V79: 9.75
A80: 6.519258801e-07 | B80: n/a | C80: n/a | D80: n/a | E80: n/a | F80: n/a | G80: n/a | H80: 49.64598207 | I80: 3.400142736 | J80: 0.01280514831 | K80: 0.3270760676 | L80: 0.5458965893 | M80: 2.027051283 | N80: 49.64598207 | O80: 3.400142736 | P80: 0.01280514831 | Q80: 0.3270760676 | R80: 0.5458965893 | S80: 1.662613731 | T80: 0.94 | U80: 19.70325936 | V80: 10
A81: 6.439264866e-07 | B81: n/a | C81: n/a | D81: n/a | E81: n/a | F81: n/a | G81: n/a | H81: 49.67484989 | I81: 3.396191996 | J81: 0.01286464022 | K81: 0.3309468433 | L81: 0.5618169289 | M81: 2.037801989 | N81: 49.67484989 | O81: 3.396191996 | P81: 0.01286464022 | Q81: 0.3309468433 | R81: 0.5618169289 | S81: 1.66954967 | T81: 0.9562805529 | U81: 20.14395951 | V81: 10.25
A82: 6.36214514e-07 | B82: n/a | C82: n/a | D82: n/a | E82: n/a | F82: n/a | G82: n/a | H82: 49.70349897 | I82: 3.392277997 | J82: 0.01292299593 | K82: 0.3347653967 | L82: 0.5777971802 | M82: 2.048314399 | N82: 49.70349897 | O82: 3.392277997 | P82: 0.01292299593 | Q82: 0.3347653967 | R82: 0.5777971802 | S82: 1.67633187 | T82: 0.9726255689 | U82: 20.58425575 | V82: 10.5
A83: 6.287731526e-07 | B83: n/a | C83: n/a | D83: n/a | E83: n/a | F83: n/a | G83: n/a | H83: 49.73192806 | I83: 3.388400737 | J83: 0.01298021541 | K83: 0.338533623 | L83: 0.5938338389 | M83: 2.058597975 | N83: 49.73192806 | O83: 3.388400737 | P83: 0.01298021541 | Q83: 0.338533623 | R83: 0.5938338389 | S83: 1.682966435 | T83: 0.9890398609 | U83: 21.02413526 | V83: 10.75
A84: 6.215869377e-07 | B84: n/a | C84: n/a | D84: n/a | E84: n/a | F84: n/a | G84: n/a | H84: 49.7601359 | I84: 3.384560218 | J84: 0.01303629868 | K84: 0.3422533112 | L84: 0.6099234117 | M84: 2.068661631 | N84: 49.7601359 | O84: 3.384560218 | P84: 0.01303629868 | Q84: 0.3422533112 | R84: 0.6099234117 | S84: 1.689459117 | T84: 1.005527963 | U84: 21.4635832 | V84: 11
A85: 6.146416142e-07 | B85: n/a | C85: n/a | D85: n/a | E85: n/a | F85: n/a | G85: n/a | H85: 49.78812127 | I85: 3.380756438 | J85: 0.01309124573 | K85: 0.3459261523 | L85: 0.6260624163 | M85: 2.078513776 | N85: 49.78812127 | O85: 3.380756438 | P85: 0.01309124573 | Q85: 0.3459261523 | R85: 0.6260624163 | S85: 1.695815339 | T85: 1.022094155 | U85: 21.90258291 | V85: 11.25
A86: 6.079240178e-07 | B86: n/a | C86: n/a | D86: n/a | E86: n/a | F86: n/a | G86: n/a | H86: 49.81588291 | I86: 3.376989397 | J86: 0.01314505657 | K86: 0.3495537471 | L86: 0.6422473812 | M86: 2.088162352 | N86: 49.81588291 | O86: 3.376989397 | P86: 0.01314505657 | Q86: 0.3495537471 | R86: 0.6422473812 | S86: 1.702040227 | T86: 1.038742477 | U86: 22.34111599 | V86: 11.5
A87: 6.014219697e-07 | B87: n/a | C87: n/a | D87: n/a | E87: n/a | F87: n/a | G87: n/a | H87: 49.84341962 | I87: 3.373259097 | J87: 0.01319773119 | K87: 0.3531376126 | L87: 0.6584748453 | M87: 2.097614868 | N87: 49.84341962 | O87: 3.373259097 | P87: 0.01319773119 | Q87: 0.3531376126 | R87: 0.6584748453 | S87: 1.708138625 | T87: 1.055476752 | U87: 22.77916247 | V87: 11.75
A88: 5.95124184e-07 | B88: n/a | C88: n/a | D88: n/a | E88: n/a | F88: n/a | G88: n/a | H88: 49.87073015 | I88: 3.369565536 | J88: 0.01324926959 | K88: 0.3566791886 | L88: 0.6747413577 | M88: 2.10687843 | N88: 49.87073015 | O88: 3.369565536 | P88: 0.01324926959 | Q88: 0.3566791886 | R88: 0.6747413577 | S88: 1.714115116 | T88: 1.072300604 | U88: 23.21670089 | V88: 12
A89: 5.890201848e-07 | B89: n/a | C89: n/a | D89: n/a | E89: n/a | F89: n/a | G89: n/a | H89: 49.8978133 | I89: 3.365908715 | J89: 0.01329967178 | K89: 0.3601798429 | L89: 0.6910434778 | M89: 2.115959768 | N89: 49.8978133 | O89: 3.365908715 | P89: 0.01329967178 | Q89: 0.3601798429 | R89: 0.6910434778 | S89: 1.719974044 | T89: 1.089217463 | U89: 23.65370842 | V89: 12.25
A90: 5.831002337e-07 | B90: n/a | C90: n/a | D90: n/a | E90: n/a | F90: n/a | G90: n/a | H90: 49.92466786 | I90: 3.362288634 | J90: 0.01334893775 | K90: 0.3636408766 | L90: 0.7073777751 | M90: 2.124865268 | N90: 49.92466786 | O90: 3.362288634 | P90: 0.01334893775 | Q90: 0.3636408766 | R90: 0.7073777751 | S90: 1.725719528 | T90: 1.10623059 | U90: 24.09016093 | V90: 12.5
A91: 5.773552637e-07 | B91: n/a | C91: n/a | D91: n/a | E91: n/a | F91: n/a | G91: n/a | H91: 49.95129261 | I91: 3.358705293 | J91: 0.0133970675 | K91: 0.3670635284 | L91: 0.7237408287 | M91: 2.133600988 | N91: 49.95129261 | O91: 3.358705293 | P91: 0.0133970675 | Q91: 0.3670635284 | R91: 0.7237408287 | S91: 1.731355476 | T91: 1.123343081 | U91: 24.52603313 | V91: 12.75
A92: 5.742113377e-07 | B92: n/a | C92: n/a | D92: n/a | E92: n/a | F92: n/a | G92: n/a | H92: 49.96610166 | I92: 3.35671467 | J92: 0.01342352386 | K92: 0.3689638906 | L92: 0.7329154276 | M92: 2.138420988 | N92: 49.96610166 | O92: 3.35671467 | P92: 0.01342352386 | Q92: 0.3689638906 | R92: 0.7329154276 | S92: 1.734465154 | T92: 1.132970583 | U92: 24.76985828 | V92: 12.89
A93: 5.663570133e-07 | B93: n/a | C93: n/a | D93: n/a | E93: n/a | F93: n/a | G93: n/a | H93: 50.00384796 | I93: 3.35164883 | J93: 0.01348991835 | K93: 0.3737983559 | L93: 0.756539569 | M93: 2.15058583 | N93: 50.00384796 | O93: 3.35164883 | P93: 0.01348991835 | Q93: 0.3737983559 | R93: 0.756539569 | S93: 1.742313439 | T93: 1.157877799 | U93: 25.39592985 | V93: 13.25
A94: 5.610884615e-07 | B94: n/a | C94: n/a | D94: n/a | E94: n/a | F94: n/a | G94: n/a | H94: 50.02977618 | I94: 3.348175708 | J94: 0.01353463946 | K94: 0.3771127344 | L94: 0.7729684612 | M94: 2.158845635 | N94: 50.02977618 | O94: 3.348175708 | P94: 0.01353463946 | Q94: 0.3771127344 | R94: 0.7729684612 | S94: 1.747642345 | T94: 1.175305503 | U94: 25.82989846 | V94: 13.5
A95: 5.559642586e-07 | B95: n/a | C95: n/a | D95: n/a | E95: n/a | F95: n/a | G95: n/a | H95: 50.05546985 | I95: 3.344739326 | J95: 0.01357822434 | K95: 0.3803931437 | L95: 0.7894125201 | M95: 2.166957058 | N95: 50.05546985 | O95: 3.344739326 | P95: 0.01357822434 | Q95: 0.3803931437 | R95: 0.7894125201 | S95: 1.752875522 | T95: 1.192843546 | U95: 26.26317506 | V95: 13.75
A96: 5.509779314e-07 | B96: n/a | C96: n/a | D96: n/a | E96: n/a | F96: n/a | G96: n/a | H96: 50.08092782 | I96: 3.341339683 | J96: 0.01362067301 | K96: 0.383640568 | L96: 0.8058683711 | M96: 2.174924829 | N96: 50.08092782 | O96: 3.341339683 | P96: 0.01362067301 | Q96: 0.383640568 | R96: 0.8058683711 | S96: 1.758016019 | T96: 1.210494361 | U96: 26.69572943 | V96: 14
A97: 5.461234056e-07 | B97: n/a | C97: n/a | D97: n/a | E97: n/a | F97: n/a | G97: n/a | H97: 50.10614892 | I97: 3.337976781 | J97: 0.01366198546 | K97: 0.3868559502 | L97: 0.8223326478 | M97: 2.182753457 | N97: 50.10614892 | O97: 3.337976781 | P97: 0.01366198546 | Q97: 0.3868559502 | R97: 0.8223326478 | S97: 1.763066747 | T97: 1.228260275 | U97: 27.12753054 | V97: 14.25
A98: 5.413949755e-07 | B98: n/a | C98: n/a | D98: n/a | E98: n/a | F98: n/a | G98: n/a | H98: 50.13113199 | I98: 3.334650618 | J98: 0.0137021617 | K98: 0.3900401937 | L98: 0.8388019926 | M98: 2.190447248 | N98: 50.13113199 | O98: 3.334650618 | P98: 0.0137021617 | Q98: 0.3900401937 | R98: 0.8388019926 | S98: 1.768030482 | T98: 1.246143512 | U98: 27.5585466 | V98: 14.5
A99: 5.367872748e-07 | B99: n/a | C99: n/a | D99: n/a | E99: n/a | F99: n/a | G99: n/a | H99: 50.15587591 | I99: 3.331361195 | J99: 0.01374120172 | K99: 0.3931941654 | L99: 0.855273056 | M99: 2.198010312 | N99: 50.15587591 | O99: 3.331361195 | P99: 0.01374120172 | Q99: 0.3931941654 | R99: 0.855273056 | S99: 1.772909879 | T99: 1.264146202 | U99: 27.98874512 | V99: 14.75
A100: 5.322952521e-07 | B100: n/a | C100: n/a | D100: n/a | E100: n/a | F100: n/a | G100: n/a | H100: 50.18037951 | I100: 3.328108512 | J100: 0.01377910552 | K100: 0.3963186973 | L100: 0.8717424964 | M100: 2.205446582 | N100: 50.18037951 | O100: 3.328108512 | P100: 0.01377910552 | Q100: 0.3963186973 | R100: 0.8717424964 | S100: 1.777707473 | T100: 1.282270384 | U100: 28.4180929 | V100: 15
A101: =SQRT(1/(PI()*59600000*0.00000125663))*SQRT(1/($V101*1000000000)) -> 5.279141468e-07 | B101: =IF($D$3=0,"n/a",94.15/( SQRT($C101)*( (($D$4/$D$6)/(1-$D$5/$D$6)) + ((((2/(1-$D$5/$D$6))*LN((1/(1-$D$5/$D$6))+1))-(((1/(1-$D$5/$D$6))-1)*LN((1/((1-$D$5/$D$6)^2))-1)))/PI() ) ) ) ) -> n/a | C101: =IF($D$3=0,"n/a",$D$29*(V101*10^9)^2 + $D$30*(V101*10^9) + $D$31) -> n/a | D101: =IF($D$3=0,"n/a",$D$32*(V101*10^9)^2 + $D$33*(V101*10^9) + $D$34) -> n/a | E101: =IF($D$3=0,"n/a", IF( 1/(SQRT(PI()*(4*PI()*10^-7*0.999994)*59600000*$V101*10^9)) >= $D$5*0.0000254, (20*LOG(EXP(1))/2) * ((1/59600000)*39.3700787/($D$5*0.001)*(1/(0.001*$D$4)+1/(6*0.001*($D$6-$D$5)/2))) * (1/$B101), (20*LOG(EXP(1))/2) * ((SQRT(PI()*(4*PI()*10^-7*0.999994)/59600000)*SQRT($V101*10^9)*(1/(0.001*$D$4)+1/(6*0.001*($D$6-$D$5)/2))))/2 * (1/$B101) ) ) -> n/a | F101: =IF($D$3=0,"n/a", ( (20*LOG(EXP(1))/2) * 2*PI()*$V101*10^9 * $D101 *SQRT($C101) ) / (299792458*39.3700787 ) ) -> n/a | G101: =IF($D$3=0,"n/a",1 + ((3/2)*($C$14)*4*PI()*($D$14)^2)/(0.0000094*0.00000814)/(1+$A101/$D$14+$A101^2/2/($D$14)^2)) -> n/a | H101: =IF($J$3=0,"n/a", 94.15/( SQRT($I101)*( (($J$4/$J$6)/(1-$J$5/$J$6)) + ((((2/(1-$J$5/$J$6))*LN((1/(1-$J$5/$J$6))+1))-(((1/(1-$J$5/$J$6))-1)*LN((1/((1-$J$5/$J$6)^2))-1)))/PI() ) ) )) -> 50.20464169 | I101: =IF($J$3=0,"n/a", $J$29*(V101*10^9)^2 + $J$30*(V101*10^9) + $J$31) -> 3.324892569 | J101: =IF($J$3=0,"n/a", $J$32*(V101*10^9)^2 + $J$33*(V101*10^9) + $J$34) -> 0.01381587311 | K101: =IF($J$3=0,"n/a", IF( 1/(SQRT(PI()*(4*PI()*10^-7*0.999994)*59600000*$V101*10^9)) >= $J$5*0.0000254, (20*LOG(EXP(1))/2) * ((1/59600000)*39.3700787/($J$5*0.001)*(1/(0.001*$J$4)+1/(6*0.001*($J$6-$J$5)/2))) * (1/$H101), (20*LOG(EXP(1))/2) * ((SQRT(PI()*(4*PI()*10^-7*0.999994)/59600000)*SQRT($V101*10^9)*(1/(0.001*$J$4)+1/(6*0.001*($J$6-$J$5)/2))))/2 * (1/$H101) )) -> 0.3994145889 | L101: =IF($J$3=0,"n/a", ( (20*LOG(EXP(1))/2) * 2*PI()*$V101*10^9 * $J101 *SQRT($I101) ) / (299792458*39.3700787 )) -> 0.8882069803 | M101: =IF($J$3=0,"n/a", 1 + ((3/2)*($I$14)*4*PI()*($J$14)^2)/(0.0000094*0.00000814)/(1+$A101/$J$14+$A101^2/2/($J$14)^2) ) -> 2.212759818 | N101: =IF($P$3=0,"n/a", 94.15/( SQRT($O101)*( (($P$4/$P$6)/(1-$P$5/$P$6)) + ((((2/(1-$P$5/$P$6))*LN((1/(1-$P$5/$P$6))+1))-(((1/(1-$P$5/$P$6))-1)*LN((1/((1-$P$5/$P$6)^2))-1)))/PI() ) ) ) ) -> 50.20464169 | O101: =IF($P$3=0,"n/a", $P$29*(V101*10^9)^2 + $P$30*(V101*10^9) + $P$31 ) -> 3.324892569 | P101: =IF($P$3=0,"n/a", $P$32*(V101*10^9)^2 + $P$33*(V101*10^9) + $P$34 ) -> 0.01381587311 | Q101: =IF($P$3=0,"n/a", IF( 1/(SQRT(PI()*(4*PI()*10^-7*0.999994)*59600000*$V101*10^9)) >= $P$5*0.0000254, (20*LOG(EXP(1))/2) * ((1/59600000)*39.3700787/($P$5*0.001)*(1/(0.001*$P$4)+1/(6*0.001*($P$6-$P$5)/2))) * (1/$N101), (20*LOG(EXP(1))/2) * ((SQRT(PI()*(4*PI()*10^-7*0.999994)/59600000)*SQRT($V101*10^9)*(1/(0.001*$P$4)+1/(6*0.001*($P$6-$P$5)/2))))/2 * (1/$N101) )) -> 0.3994145889 | R101: =IF($P$3=0,"n/a", ( (20*LOG(EXP(1))/2) * 2*PI()*$V101*10^9 * $P101 *SQRT($O101) ) / (299792458*39.3700787 ) ) -> 0.8882069803 | S101: =IF($P$3=0,"n/a", 1 + ((3/2)*($O$14)*4*PI()*($P$14)^2)/(0.0000094*0.00000814)/(1+$A101/$P$14+$A101^2/2/($P$14)^2) ) -> 1.782425689 | T101: =IF(OR(AND(NOT($D$3=0),NOT($J$3=0),NOT($P$3=0)),AND($J$3=0, P$3=0,NOT(D$3=0)), AND(D$3=0, NOT(J$3=0),NOT(P$3=0))), 0.000009*SQRT($V101*1000000000)-0.000000000012*($V101*1000000000)+1.6E-21*($V101*1000000000)^2,0) -> 1.300518013 | U101: =IF(NOT($E101="n/a"),F101*$D$3 + E101*G101*$D$3,0) + IF(NOT(K101="n/a"),(L101 + K101*M101)*$J$3,0) + IF(NOT(Q101="n/a"),(R101 + Q101*S101)*$P$3,0) + IF(OR(AND($J$3=0, P$3=0,NOT(D$3=0)), AND(NOT($J$3=0), NOT(P$3=0),NOT(D$3=0)) ),2,IF(AND($D$3=0, NOT(J$3=0),NOT(P$3=0)),1,0))*$T101 -> 28.84655614 | V101: 15.25
A102: 5.236394679e-07 | B102: n/a | C102: n/a | D102: n/a | E102: n/a | F102: n/a | G102: n/a | H102: 50.22866131 | I102: 3.321713365 | J102: 0.01385150448 | K102: 0.4024826087 | L102: 0.9046631819 | M102: 2.219953616 | N102: 50.22866131 | O102: 3.321713365 | P102: 0.01385150448 | Q102: 0.4024826087 | R102: 0.9046631819 | S102: 1.787066849 | T102: 1.318890964 | U102: 29.27410041 | V102: 15.5
A103: 5.194669754e-07 | B103: n/a | C103: n/a | D103: n/a | E103: n/a | F103: n/a | G103: n/a | H103: 50.25243727 | I103: 3.318570901 | J103: 0.01388599963 | K103: 0.4055234964 | L103: 0.9211077825 | M103: 2.227031426 | N103: 50.25243727 | O103: 3.318570901 | P103: 0.01388599963 | Q103: 0.4055234964 | R103: 0.9211077825 | S103: 1.791633178 | T103: 1.337391036 | U103: 29.70069074 | V103: 15.75
A104: 5.153926617e-07 | B104: n/a | C104: n/a | D104: n/a | E104: n/a | F104: n/a | G104: n/a | H104: 50.27596846 | I104: 3.315465177 | J104: 0.01391935857 | K104: 0.4085379638 | L104: 0.9375374711 | M104: 2.233996548 | N104: 50.27596846 | O104: 3.315465177 | P104: 0.01391935857 | Q104: 0.4085379638 | R104: 0.9375374711 | S104: 1.796126805 | T104: 1.356019958 | U104: 30.12629158 | V104: 16
A105: 5.11412736e-07 | B105: n/a | C105: n/a | D105: n/a | E105: n/a | F105: n/a | G105: n/a | H105: 50.29925378 | I105: 3.312396193 | J105: 0.01395158129 | K105: 0.4115266968 | L105: 0.9539489434 | M105: 2.24085215 | N105: 50.29925378 | O105: 3.312396193 | P105: 0.01395158129 | Q105: 0.4115266968 | R105: 0.9539489434 | S105: 1.800549774 | T105: 1.374779391 | U105: 30.55086691 | V105: 16.25
A106: 5.075236094e-07 | B106: n/a | C106: n/a | D106: n/a | E106: n/a | F106: n/a | G106: n/a | H106: 50.32229215 | I106: 3.309363949 | J106: 0.01398266779 | K106: 0.4144903568 | L106: 0.9703389024 | M106: 2.24760127 | N106: 50.32229215 | O106: 3.309363949 | P106: 0.01398266779 | Q106: 0.4144903568 | R106: 0.9703389024 | S106: 1.804904045 | T106: 1.393670932 | U106: 30.9743802 | V106: 16.5
A107: 5.037218809e-07 | B107: n/a | C107: n/a | D107: n/a | E107: n/a | F107: n/a | G107: n/a | H107: 50.34508249 | I107: 3.306368444 | J107: 0.01401261808 | K107: 0.4174295816 | L107: 0.9867040574 | M107: 2.254246825 | N107: 50.34508249 | O107: 3.306368444 | P107: 0.01401261808 | Q107: 0.4174295816 | R107: 0.9867040574 | S107: 1.8091915 | T107: 1.412696119 | U107: 31.39679448 | V107: 16.75
A108: 5.000043254e-07 | B108: n/a | C108: n/a | D108: n/a | E108: n/a | F108: n/a | G108: n/a | H108: 50.36762374 | I108: 3.303409679 | J108: 0.01404143215 | K108: 0.420344987 | L108: 1.003041124 | M108: 2.260791617 | N108: 50.36762374 | O108: 3.303409679 | P108: 0.01404143215 | Q108: 0.420344987 | R108: 1.003041124 | S108: 1.813413946 | T108: 1.431856433 | U108: 31.81807232 | V108: 17
A109: 4.96367882e-07 | B109: n/a | C109: n/a | D109: n/a | E109: n/a | F109: n/a | G109: n/a | H109: 50.38991482 | I109: 3.300487654 | J109: 0.01406911 | K109: 0.4232371675 | L109: 1.019346825 | M109: 2.267238336 | N109: 50.38991482 | O109: 3.300487654 | P109: 0.01406911 | Q109: 0.4232371675 | R109: 1.019346825 | S109: 1.81757312 | T109: 1.451153298 | U109: 32.23817588 | V109: 17.25
A110: 4.928096435e-07 | B110: n/a | C110: n/a | D110: n/a | E110: n/a | F110: n/a | G110: n/a | H110: 50.4119547 | I110: 3.297602369 | J110: 0.01409565164 | K110: 0.4261066978 | L110: 1.035617889 | M110: 2.273589572 | N110: 50.4119547 | O110: 3.297602369 | P110: 0.01409565164 | Q110: 0.4261066978 | R110: 1.035617889 | S110: 1.821670692 | T110: 1.47058809 | U110: 32.65706693 | V110: 17.5
A111: 4.893268461e-07 | B111: n/a | C111: n/a | D111: n/a | E111: n/a | F111: n/a | G111: n/a | H111: 50.43374232 | I111: 3.294753823 | J111: 0.01412105706 | K111: 0.4289541336 | L111: 1.051851049 | M111: 2.279847814 | N111: 50.43374232 | O111: 3.294753823 | P111: 0.01412105706 | Q111: 0.4289541336 | R111: 1.051851049 | S111: 1.825708267 | T111: 1.490162134 | U111: 33.07470687 | V111: 17.75
A112: 4.859168614e-07 | B112: n/a | C112: n/a | D112: n/a | E112: n/a | F112: n/a | G112: n/a | H112: 50.45527666 | I112: 3.291942018 | J112: 0.01414532626 | K112: 0.4317800123 | L112: 1.068043045 | M112: 2.286015457 | N112: 50.45527666 | O112: 3.291942018 | P112: 0.01414532626 | Q112: 0.4317800123 | R112: 1.068043045 | S112: 1.829687392 | T112: 1.509876708 | U112: 33.49105671 | V112: 18
A113: 4.825771871e-07 | B113: n/a | C113: n/a | D113: n/a | E113: n/a | F113: n/a | G113: n/a | H113: 50.4765567 | I113: 3.289166952 | J113: 0.01416845925 | K113: 0.4345848542 | L113: 1.084190623 | M113: 2.292094809 | N113: 50.4765567 | O113: 3.289166952 | P113: 0.01416845925 | Q113: 0.4345848542 | R113: 1.084190623 | S113: 1.833609555 | T113: 1.529733048 | U113: 33.90607714 | V113: 18.25
A114: 4.793054396e-07 | B114: n/a | C114: n/a | D114: n/a | E114: n/a | F114: n/a | G114: n/a | H114: 50.49758142 | I114: 3.286428626 | J114: 0.01419045602 | K114: 0.4373691632 | L114: 1.100290534 | M114: 2.298088093 | N114: 50.49758142 | O114: 3.286428626 | P114: 0.01419045602 | Q114: 0.4373691632 | R114: 1.100290534 | S114: 1.837476189 | T114: 1.549732346 | U114: 34.3197285 | V114: 18.5
A115: 4.760993472e-07 | B115: n/a | C115: n/a | D115: n/a | E115: n/a | F115: n/a | G115: n/a | H115: 50.51834982 | I115: 3.28372704 | J115: 0.01421131657 | K115: 0.4401334274 | L115: 1.116339532 | M115: 2.303997449 | N115: 50.51834982 | O115: 3.28372704 | P115: 0.01421131657 | Q115: 0.4401334274 | R115: 1.116339532 | S115: 1.841288677 | T115: 1.569875754 | U115: 34.73197083 | V115: 18.75
A116: 4.729567429e-07 | B116: n/a | C116: n/a | D116: n/a | E116: n/a | F116: n/a | G116: n/a | H116: 50.53886091 | I116: 3.281062193 | J116: 0.01423104091 | K116: 0.4428781201 | L116: 1.132334379 | M116: 2.309824943 | N116: 50.53886091 | O116: 3.281062193 | P116: 0.01423104091 | Q116: 0.4428781201 | R116: 1.132334379 | S116: 1.845048351 | T116: 1.590164388 | U116: 35.14276386 | V116: 19
A117: 4.698755587e-07 | B117: n/a | C117: n/a | D117: n/a | E117: n/a | F117: n/a | G117: n/a | H117: 50.55911371 | I117: 3.278434086 | J117: 0.01424962903 | K117: 0.4456037001 | L117: 1.148271839 | M117: 2.315572567 | N117: 50.55911371 | O117: 3.278434086 | P117: 0.01424962903 | Q117: 0.4456037001 | R117: 1.148271839 | S117: 1.848756495 | T117: 1.610599323 | U117: 35.55206701 | V117: 19.25
A118: 4.668538195e-07 | B118: n/a | C118: n/a | D118: n/a | E118: n/a | F118: n/a | G118: n/a | H118: 50.57910724 | I118: 3.275842719 | J118: 0.01426708093 | K118: 0.4483106128 | L118: 1.164148683 | M118: 2.321242242 | N118: 50.57910724 | O118: 3.275842719 | P118: 0.01426708093 | Q118: 0.4483106128 | R118: 1.164148683 | S118: 1.852414349 | T118: 1.631181604 | U118: 35.95983945 | V118: 19.5
A119: 4.638896383e-07 | B119: n/a | C119: n/a | D119: n/a | E119: n/a | F119: n/a | G119: n/a | H119: 50.59884054 | I119: 3.273288092 | J119: 0.01428339662 | K119: 0.4509992903 | L119: 1.179961683 | M119: 2.326835823 | N119: 50.59884054 | O119: 3.273288092 | P119: 0.01428339662 | Q119: 0.4509992903 | R119: 1.179961683 | S119: 1.856023111 | T119: 1.651912239 | U119: 36.36604006 | V119: 19.75
A120: 4.609812107e-07 | B120: n/a | C120: n/a | D120: n/a | E120: n/a | F120: n/a | G120: n/a | H120: 50.61831266 | I120: 3.270770205 | J120: 0.01429857609 | K120: 0.4536701525 | L120: 1.195707619 | M120: 2.332355102 | N120: 50.61831266 | O120: 3.270770205 | P120: 0.01429857609 | Q120: 0.4536701525 | R120: 1.195707619 | S120: 1.859583937 | T120: 1.672792206 | U120: 36.77062745 | V120: 20
A121: 4.581268104e-07 | B121: n/a | C121: n/a | D121: n/a | E121: n/a | F121: n/a | G121: n/a | H121: 50.63752266 | I121: 3.268289057 | J121: 0.01431261934 | K121: 0.4563236072 | L121: 1.211383272 | M121: 2.33780181 | N121: 50.63752266 | O121: 3.268289057 | P121: 0.01431261934 | Q121: 0.4563236072 | R121: 1.211383272 | S121: 1.863097942 | T121: 1.693822452 | U121: 37.17355999 | V121: 20.25
A122: 4.553247853e-07 | B122: n/a | C122: n/a | D122: n/a | E122: n/a | F122: n/a | G122: n/a | H122: 50.65646961 | I122: 3.26584465 | J122: 0.01432552638 | K122: 0.4589600507 | L122: 1.226985427 | M122: 2.343177621 | N122: 50.65646961 | O122: 3.26584465 | P122: 0.01432552638 | Q122: 0.4589600507 | R122: 1.226985427 | S122: 1.866566207 | T122: 1.715003896 | U122: 37.57479582 | V122: 20.5
A123: 4.525735529e-07 | B123: n/a | C123: n/a | D123: n/a | E123: n/a | F123: n/a | G123: n/a | H123: 50.6751526 | I123: 3.263436982 | J123: 0.0143372972 | K123: 0.4615798685 | L123: 1.242510874 | M123: 2.348484151 | N123: 50.6751526 | O123: 3.263436982 | P123: 0.0143372972 | Q123: 0.4615798685 | R123: 1.242510874 | S123: 1.869989775 | T123: 1.736337426 | U123: 37.9742928 | V123: 20.75
A124: 4.498715971e-07 | B124: n/a | C124: n/a | D124: n/a | E124: n/a | F124: n/a | G124: n/a | H124: 50.6935707 | I124: 3.261066054 | J124: 0.0143479318 | K124: 0.4641834354 | L124: 1.257956403 | M124: 2.353722965 | N124: 50.6935707 | O124: 3.261066054 | P124: 0.0143479318 | Q124: 0.4641834354 | R124: 1.257956403 | S124: 1.873369655 | T124: 1.757823907 | U124: 38.37200862 | V124: 21
A125: 4.472174642e-07 | B125: n/a | C125: n/a | D125: n/a | E125: n/a | F125: n/a | G125: n/a | H125: 50.71172303 | I125: 3.258731865 | J125: 0.01435743019 | K125: 0.4667711162 | L125: 1.273318811 | M125: 2.358895575 | N125: 50.71172303 | O125: 3.258731865 | P125: 0.01435743019 | Q125: 0.4667711162 | R125: 1.273318811 | S125: 1.876706823 | T125: 1.779464176 | U125: 38.76790069 | V125: 21.25
A126: 4.4460976e-07 | B126: n/a | C126: n/a | D126: n/a | E126: n/a | F126: n/a | G126: n/a | H126: 50.72960871 | I126: 3.256434417 | J126: 0.01436579236 | K126: 0.4693432661 | L126: 1.288594896 | M126: 2.364003448 | N126: 50.72960871 | O126: 3.256434417 | P126: 0.01436579236 | Q126: 0.4693432661 | R126: 1.288594896 | S126: 1.880002225 | T126: 1.801259047 | U126: 39.16192624 | V126: 21.5
A127: 4.420471464e-07 | B127: n/a | C127: n/a | D127: n/a | E127: n/a | F127: n/a | G127: n/a | H127: 50.74722684 | I127: 3.254173708 | J127: 0.01437301832 | K127: 0.4719002308 | L127: 1.303781457 | M127: 2.369048002 | N127: 50.74722684 | O127: 3.254173708 | P127: 0.01437301832 | Q127: 0.4719002308 | R127: 1.303781457 | S127: 1.883256775 | T127: 1.823209308 | U127: 39.55404228 | V127: 21.75
A128: 4.395283387e-07 | B128: n/a | C128: n/a | D128: n/a | E128: n/a | F128: n/a | G128: n/a | H128: 50.76457658 | I128: 3.251949739 | J128: 0.01437910805 | K128: 0.4744423473 | L128: 1.318875298 | M128: 2.374030609 | N128: 50.76457658 | O128: 3.251949739 | P128: 0.01437910805 | Q128: 0.4744423473 | R128: 1.318875298 | S128: 1.886471361 | T128: 1.845315728 | U128: 39.94420561 | V128: 22
A129: 4.37052103e-07 | B129: n/a | C129: n/a | D129: n/a | E129: n/a | F129: n/a | G129: n/a | H129: 50.78165708 | I129: 3.24976251 | J129: 0.01438406157 | K129: 0.4769699439 | L129: 1.333873224 | M129: 2.3789526 | N129: 50.78165708 | O129: 3.24976251 | P129: 0.01438406157 | Q129: 0.4769699439 | R129: 1.333873224 | S129: 1.889646839 | T129: 1.86757905 | U129: 40.33237284 | V129: 22.25
A130: 4.346172534e-07 | B130: n/a | C130: n/a | D130: n/a | E130: n/a | F130: n/a | G130: n/a | H130: 50.79846748 | I130: 3.24761202 | J130: 0.01438787888 | K130: 0.4794833405 | L130: 1.348772042 | M130: 2.383815266 | N130: 50.79846748 | O130: 3.24761202 | P130: 0.01438787888 | Q130: 0.4794833405 | R130: 1.348772042 | S130: 1.892784043 | T130: 1.89 | U130: 40.71850036 | V130: 22.5
A131: 4.322226498e-07 | B131: n/a | C131: n/a | D131: n/a | E131: n/a | F131: n/a | G131: n/a | H131: 50.81500697 | I131: 3.24549827 | J131: 0.01439055997 | K131: 0.4819828493 | L131: 1.363568561 | M131: 2.388619857 | N131: 50.81500697 | O131: 3.24549827 | P131: 0.01439055997 | Q131: 0.4819828493 | R131: 1.363568561 | S131: 1.895883778 | T131: 1.912579282 | U131: 41.10254441 | V131: 22.75
A132: 4.298671955e-07 | B132: n/a | C132: n/a | D132: n/a | E132: n/a | F132: n/a | G132: n/a | H132: 50.83127473 | I132: 3.243421261 | J132: 0.01439210484 | K132: 0.4844687747 | L132: 1.378259591 | M132: 2.393367584 | N132: 50.83127473 | O132: 3.243421261 | P132: 0.01439210484 | Q132: 0.4844687747 | R132: 1.378259591 | S132: 1.898946828 | T132: 1.93531758 | U132: 41.48446099 | V132: 23
A133: 4.275498352e-07 | B133: n/a | C133: n/a | D133: n/a | E133: n/a | F133: n/a | G133: n/a | H133: 50.84726995 | I133: 3.241380991 | J133: 0.01439251349 | K133: 0.4869414137 | L133: 1.392841944 | M133: 2.398059623 | N133: 50.84726995 | O133: 3.241380991 | P133: 0.01439251349 | Q133: 0.4869414137 | R133: 1.392841944 | S133: 1.90197395 | T133: 1.958215561 | U133: 41.86420596 | V133: 23.25
A134: 4.252695532e-07 | B134: n/a | C134: n/a | D134: n/a | E134: n/a | F134: n/a | G134: n/a | H134: 50.86299184 | I134: 3.23937746 | J134: 0.01439178593 | K134: 0.4894010563 | L134: 1.407312433 | M134: 2.402697117 | N134: 50.86299184 | O134: 3.23937746 | P134: 0.01439178593 | Q134: 0.4894010563 | R134: 1.407312433 | S134: 1.904965882 | T134: 1.981273875 | U134: 42.24173497 | V134: 23.5
A135: 4.23025371e-07 | B135: n/a | C135: n/a | D135: n/a | E135: n/a | F135: n/a | G135: n/a | H135: 50.87843963 | I135: 3.23741067 | J135: 0.01438992215 | K135: 0.4918479856 | L135: 1.421667872 | M135: 2.407281171 | N135: 50.87843963 | O135: 3.23741067 | P135: 0.01438992215 | Q135: 0.4918479856 | R135: 1.421667872 | S135: 1.907923336 | T135: 2.004493151 | U135: 42.61700351 | V135: 23.75
A136: 4.208163461e-07 | B136: n/a | C136: n/a | D136: n/a | E136: n/a | F136: n/a | G136: n/a | H136: 50.89361254 | I136: 3.235480619 | J136: 0.01438692215 | K136: 0.4942824782 | L136: 1.435905075 | M136: 2.411812862 | N136: 50.89361254 | O136: 3.235480619 | P136: 0.01438692215 | Q136: 0.4942824782 | R136: 1.435905075 | S136: 1.910847008 | T136: 2.027874005 | U136: 42.98996687 | V136: 24
A137: 4.186415701e-07 | B137: n/a | C137: n/a | D137: n/a | E137: n/a | F137: n/a | G137: n/a | H137: 50.90850982 | I137: 3.233587308 | J137: 0.01438278594 | K137: 0.4967048041 | L137: 1.450020858 | M137: 2.416293233 | N137: 50.90850982 | O137: 3.233587308 | P137: 0.01438278594 | Q137: 0.4967048041 | R137: 1.450020858 | S137: 1.91373757 | T137: 2.051417035 | U137: 43.3605802 | V137: 24.25
A138: 4.165001669e-07 | B138: n/a | C138: n/a | D138: n/a | E138: n/a | F138: n/a | G138: n/a | H138: 50.92313074 | I138: 3.231730737 | J138: 0.01437751351 | K138: 0.4991152274 | L138: 1.464012035 | M138: 2.420723299 | N138: 50.92313074 | O138: 3.231730737 | P138: 0.01437751351 | Q138: 0.4991152274 | R138: 1.464012035 | S138: 1.916595677 | T138: 2.075122826 | U138: 43.72879845 | V138: 24.5
A139: 4.143912918e-07 | B139: n/a | C139: n/a | D139: n/a | E139: n/a | F139: n/a | G139: n/a | H139: 50.93747455 | I139: 3.229910906 | J139: 0.01437110487 | K139: 0.501514006 | L139: 1.477875423 | M139: 2.425104044 | N139: 50.93747455 | O139: 3.229910906 | P139: 0.01437110487 | Q139: 0.501514006 | R139: 1.477875423 | S139: 1.919421964 | T139: 2.098991945 | U139: 44.09457641 | V139: 24.75
A140: 4.123141294e-07 | B140: n/a | C140: n/a | D140: n/a | E140: n/a | F140: n/a | G140: n/a | H140: 50.95154054 | I140: 3.228127814 | J140: 0.01436356 | K140: 0.5039013925 | L140: 1.491607837 | M140: 2.429436428 | N140: 50.95154054 | O140: 3.228127814 | P140: 0.01436356 | Q140: 0.5039013925 | R140: 1.491607837 | S140: 1.92221705 | T140: 2.123024947 | U140: 44.45786869 | V140: 25
A141: 4.102678928e-07 | B141: n/a | C141: n/a | D141: n/a | E141: n/a | F141: n/a | G141: n/a | H141: 50.96532801 | I141: 3.226381463 | J141: 0.01435487893 | K141: 0.5062776334 | L141: 1.505206091 | M141: 2.43372138 | N141: 50.96532801 | O141: 3.226381463 | P141: 0.01435487893 | Q141: 0.5062776334 | R141: 1.505206091 | S141: 1.924981536 | T141: 2.147222372 | U141: 44.81862976 | V141: 25.25
A142: 4.082518221e-07 | B142: n/a | C142: n/a | D142: n/a | E142: n/a | F142: n/a | G142: n/a | H142: 50.97883626 | I142: 3.224671851 | J142: 0.01434506163 | K142: 0.5086429703 | L142: 1.518667 | M142: 2.437959807 | N142: 50.97883626 | O142: 3.224671851 | P142: 0.01434506163 | Q142: 0.5086429703 | R142: 1.518667 | S142: 1.927716004 | T142: 2.171584748 | U142: 45.17681389 | V142: 25.5
A143: 4.060287307e-07 | B143: n/a | C143: n/a | D143: n/a | E143: n/a | F143: n/a | G143: n/a | H143: 50.99363319 | I143: 3.222800703 | J143: 0.01433271734 | K143: 0.5112794938 | L143: 1.533576228 | M143: 2.442652695 | N143: 50.99363319 | O143: 3.222800703 | P143: 0.01433271734 | Q143: 0.5112794938 | R143: 1.533576228 | S143: 1.930743674 | T143: 2.199067072 | U143: 45.57486414 | V143: 25.78
A144: 4.043072676e-07 | B144: n/a | C144: n/a | D144: n/a | E144: n/a | F144: n/a | G144: n/a | H144: 51.00501244 | I144: 3.221362846 | J144: 0.01432201839 | K144: 0.5133418719 | L144: 1.545164037 | M144: 2.44630058 | N144: 51.00501244 | O144: 3.221362846 | P144: 0.01432201839 | Q144: 0.5133418719 | R144: 1.545164037 | S144: 1.933097148 | T144: 2.220806395 | U144: 45.88526769 | V144: 26
A145: 4.023773889e-07 | B145: n/a | C145: n/a | D145: n/a | E145: n/a | F145: n/a | G145: n/a | H145: 51.01767903 | I145: 3.219763454 | J145: 0.01430879244 | K145: 0.5156758942 | L145: 1.558193789 | M145: 2.450404617 | N145: 51.01767903 | O145: 3.219763454 | P145: 0.01430879244 | Q145: 0.5156758942 | R145: 1.558193789 | S145: 1.935744914 | T145: 2.245666657 | U145: 46.2354451 | V145: 26.25
A146: 4.004748847e-07 | B146: n/a | C146: n/a | D146: n/a | E146: n/a | F146: n/a | G146: n/a | H146: 51.03006379 | I146: 3.218200801 | J146: 0.01429443028 | K146: 0.5179999281 | L146: 1.571073444 | M146: 2.45446551 | N146: 51.03006379 | O146: 3.218200801 | P146: 0.01429443028 | Q146: 0.5179999281 | R146: 1.571073444 | S146: 1.938364845 | T146: 2.270693854 | U146: 46.58286108 | V146: 26.5
A147: 3.985991138e-07 | B147: n/a | C147: n/a | D147: n/a | E147: n/a | F147: n/a | G147: n/a | H147: 51.04216607 | I147: 3.216674888 | J147: 0.0142789319 | K147: 0.5203141907 | L147: 1.583799811 | M147: 2.458484048 | N147: 51.04216607 | O147: 3.216674888 | P147: 0.0142789319 | Q147: 0.5203141907 | R147: 1.583799811 | S147: 1.940957451 | T147: 2.295888451 | U147: 46.9274691 | V147: 26.75
A148: 3.96749456e-07 | B148: n/a | C148: n/a | D148: n/a | E148: n/a | F148: n/a | G148: n/a | H148: 51.05398526 | I148: 3.215185715 | J148: 0.01426229731 | K148: 0.5226188947 | L148: 1.596369697 | M148: 2.462461002 | N148: 51.05398526 | O148: 3.215185715 | P148: 0.01426229731 | Q148: 0.5226188947 | R148: 1.596369697 | S148: 1.943523227 | T148: 2.321250905 | U148: 47.26922246 | V148: 27
A149: 3.949253109e-07 | B149: n/a | C149: n/a | D149: n/a | E149: n/a | F149: n/a | G149: n/a | H149: 51.06552078 | I149: 3.213733282 | J149: 0.0142445265 | K149: 0.5249142486 | L149: 1.608779905 | M149: 2.46639712 | N149: 51.06552078 | O149: 3.213733282 | P149: 0.0142445265 | Q149: 0.5249142486 | R149: 1.608779905 | S149: 1.946062658 | T149: 2.346781662 | U149: 47.6080743 | V149: 27.25
A150: 3.931260974e-07 | B150: n/a | C150: n/a | D150: n/a | E150: n/a | F150: n/a | G150: n/a | H150: 51.07677203 | I150: 3.212317588 | J150: 0.01422561947 | K150: 0.5272004568 | L150: 1.621027239 | M150: 2.470293131 | N150: 51.07677203 | O150: 3.212317588 | P150: 0.01422561947 | Q150: 0.5272004568 | R150: 1.621027239 | S150: 1.948576214 | T150: 2.372481156 | U150: 47.94397761 | V150: 27.5
A151: 3.913512527e-07 | B151: n/a | C151: n/a | D151: n/a | E151: n/a | F151: n/a | G151: n/a | H151: 51.08773844 | I151: 3.210938634 | J151: 0.01420557622 | K151: 0.5294777196 | L151: 1.633108499 | M151: 2.474149748 | N151: 51.08773844 | O151: 3.210938634 | P151: 0.01420557622 | Q151: 0.5294777196 | R151: 1.633108499 | S151: 1.951064353 | T151: 2.398349812 | U151: 48.27688519 | V151: 27.75
A152: 3.896002316e-07 | B152: n/a | C152: n/a | D152: n/a | E152: n/a | F152: n/a | G152: n/a | H152: 51.09841946 | I152: 3.20959642 | J152: 0.01418439676 | K152: 0.5317462335 | L152: 1.645020481 | M152: 2.477967662 | N152: 51.09841946 | O152: 3.20959642 | P152: 0.01418439676 | Q152: 0.5317462335 | R152: 1.645020481 | S152: 1.953527524 | T152: 2.424388048 | U152: 48.6067497 | V152: 28
A153: 3.878725058e-07 | B153: n/a | C153: n/a | D153: n/a | E153: n/a | F153: n/a | G153: n/a | H153: 51.10881454 | I153: 3.208290946 | J153: 0.01416208108 | K153: 0.5340061911 | L153: 1.65675998 | M153: 2.481747549 | N153: 51.10881454 | O153: 3.208290946 | P153: 0.01416208108 | Q153: 0.5340061911 | R153: 1.65675998 | S153: 1.955966161 | T153: 2.450596268 | U153: 48.93352363 | V153: 28.25
A154: 3.861675635e-07 | B154: n/a | C154: n/a | D154: n/a | E154: n/a | F154: n/a | G154: n/a | H154: 51.11892315 | I154: 3.207022211 | J154: 0.01413862919 | K154: 0.5362577814 | L154: 1.668323788 | M154: 2.485490068 | N154: 51.11892315 | O154: 3.207022211 | P154: 0.01413862919 | Q154: 0.5362577814 | R154: 1.668323788 | S154: 1.958380689 | T154: 2.476974871 | U154: 49.25715929 | V154: 28.5
A155: 3.844849081e-07 | B155: n/a | C155: n/a | D155: n/a | E155: n/a | F155: n/a | G155: n/a | H155: 51.12874478 | I155: 3.205790217 | J155: 0.01411404108 | K155: 0.53850119 | L155: 1.679708692 | M155: 2.489195861 | N155: 51.12874478 | O155: 3.205790217 | P155: 0.01411404108 | Q155: 0.53850119 | R155: 1.679708692 | S155: 1.960771523 | T155: 2.503524246 | U155: 49.57760885 | V155: 28.75
A156: 3.828240584e-07 | B156: n/a | C156: n/a | D156: n/a | E156: n/a | F156: n/a | G156: n/a | H156: 51.13827894 | I156: 3.204594962 | J156: 0.01408831675 | K156: 0.5407365987 | L156: 1.690911477 | M156: 2.492865555 | N156: 51.13827894 | O156: 3.204594962 | P156: 0.01408831675 | Q156: 0.5407365987 | R156: 1.690911477 | S156: 1.963139068 | T156: 2.530244773 | U156: 49.89482429 | V156: 29
A157: 3.811845474e-07 | B157: n/a | C157: n/a | D157: n/a | E157: n/a | F157: n/a | G157: n/a | H157: 51.14752512 | I157: 3.203436447 | J157: 0.0140614562 | K157: 0.5429641863 | L157: 1.701928923 | M157: 2.49649976 | N157: 51.14752512 | O157: 3.203436447 | P157: 0.0140614562 | Q157: 0.5429641863 | R157: 1.701928923 | S157: 1.965483716 | T157: 2.557136824 | U157: 50.20875744 | V157: 29.25
A158: 3.795659221e-07 | B158: n/a | C158: n/a | D158: n/a | E158: n/a | F158: n/a | G158: n/a | H158: 51.15648286 | I158: 3.202314672 | J158: 0.01403345944 | K158: 0.5451841281 | L158: 1.712757809 | M158: 2.500099074 | N158: 51.15648286 | O158: 3.202314672 | P158: 0.01403345944 | Q158: 0.5451841281 | R158: 1.712757809 | S158: 1.967805854 | T158: 2.584200763 | U158: 50.51935996 | V158: 29.5
A159: 3.779677427e-07 | B159: n/a | C159: n/a | D159: n/a | E159: n/a | F159: n/a | G159: n/a | H159: 51.1651517 | I159: 3.201229636 | J159: 0.01400432646 | K159: 0.5473965963 | L159: 1.723394905 | M159: 2.503664077 | N159: 51.1651517 | O159: 3.201229636 | P159: 0.01400432646 | Q159: 0.5473965963 | R159: 1.723394905 | S159: 1.970105856 | T159: 2.611436948 | U159: 50.82658332 | V159: 29.75
A160: 3.763895824e-07 | B160: n/a | C160: n/a | D160: n/a | E160: n/a | F160: n/a | G160: n/a | H160: 51.17353119 | I160: 3.200181341 | J160: 0.01397405727 | K160: 0.5496017601 | L160: 1.73383698 | M160: 2.507195338 | N160: 51.17353119 | O160: 3.200181341 | P160: 0.01397405727 | Q160: 0.5496017601 | R160: 1.73383698 | S160: 1.972384089 | T160: 2.638845727 | U160: =IF(NOT($E160="n/a"),F160*$D$3 + E160*G160*$D$3,0) + IF(NOT(K160="n/a"),(L160 + K160*M160)*$J$3,0) + IF(NOT(Q160="n/a"),(R160 + Q160*S160)*$P$3,0) + IF(OR(AND($J$3=0, P$3=0,NOT(D$3=0)), AND(NOT($J$3=0), NOT(P$3=0),NOT(D$3=0)) ),2,IF(AND($D$3=0, NOT(J$3=0),NOT(P$3=0)),1,0))*$T160 -> 51.13037884 | V160: 30
A165: =SQRT(1/(PI()*59600000*0.00000125663))*SQRT(1/($V165*1000000000)) -> 
A229: =SQRT(1/(PI()*59600000*0.00000125663))*SQRT(1/($V229*1000000000)) -> 

Sheet Material References
B2: Megtron 6 | C2: Dk | D2: Df
B3: 100000000 | C3: 3.67 | D3: 0.0039
B4: 1000000000 | C4: 3.65 | D4: 0.004
B5: 2000000000 | C5: 3.59 | D5: 0.0043
B6: 5000000000 | C6: 3.576 | D6: 0.0049
B7: 10000000000 | C7: 3.3494 | D7: 0.0055
B8: 30000000000 | C8: 3 | D8: 0.0065
B10: Nelco 4000-13SI | C10: Dk | D10: Df
B11: 100000000 | C11: 3.6 | D11: 0.0092
B12: 1000000000 | C12: 3.52 | D12: 0.0105
B13: 2000000000 | C13: 3.49 | D13: 0.0108
B14: 5000000000 | C14: 3.46 | D14: 0.011
B15: 10000000000 | C15: 3.44 | D15: 0.0112
B16: 30000000000 | C16: 3.43 | D16: 0.0114
B18: Improved FR4 | C18: Dk | D18: Df
B19: 100000000 | C19: 3.6 | D19: 0.0092
B20: 1000000000 | C20: 3.6 | D20: 0.0092
B21: 2000000000 | C21: 3.5 | D21: 0.0115
B22: 5000000000 | C22: 3.5 | D22: 0.0115
B23: 10000000000 | C23: 3.4 | D23: 0.0125
B24: 30000000000 | C24: 3.2 | D24: 0.014

Sheet Specifications
A1: b1 | B1: 2e-05 | D1: b2 | E1: 1.1e-10 | F1: b3 | G1: 3.2e-20 | H1: b4 | I1: -1.2e-30
A2: F1 | B2: 1000000000 | D2: F2 | E2: 6000000000 | F2: Fa | G2: 100000000 | H2: Fb | I2: 5156250000 | J2: fmin | K2: 50000000 | L2: fmax | M2: 15000000000
D3: 10G KR MAX INSERTION LOSS | G3: Clause 83D - CAUI4 - C2C | I3: Clause 83E - CAUI4 - C2M | K3: Clause 92 - KR4 | M3: Clause 92 - KP4
A4: Freq | B4: Freq (GHz) | D4: Fitted Attenuation | E4: Insertion Loss | G4: Informative IL | I4: Max Insertion Loss | K4: Informative IL | M4: Informative IL
A5: 10000000 | B5: =A5*0.000000001 -> 0.01 | D5: =20 * LOG(EXP(1)) * ($B$1*SQRT(A5) + $E$1*A5 + $G$1*(A5^2) + $I$1*(A5^3)) -> 0.5589261582 | E5: =IF(A5<$K$2,,IF(A5<$E$2,D5+0.8+0.0000000002*A5,IF(A5<$M$2,D5+0.8+0.0000000002*$E$2+0.00000001*(A5-$E$2),))) -> 0 | G5: =IF(B5<12.89,1.083+2.543*SQRT(B5)+0.761*B5,IF(B5<25.78,-17.851+2.936*B5,0)) -> 1.34491 | I5: =IF(B5<=14,1.076*(0.075+0.537*SQRT(B5)+0.566*B5),IF(B5<18.75,1.076*(-18+2*B5),0)) -> 0.14457136 | K5: =IF(B5<=(25.78/2),1.5+4.6*SQRT(B5)+1.318*B5,IF(B5<25.78,-12.71+3.7*B5,0)) -> 1.97318 | M5: =IF(B5>=0.05,IF(B5<=7,0.8+0.00017372*SQRT(A5)+0.0000000011554*A5+2.7795E-19*A5^2-1.0423E-29*A5^3,IF(B5<15,33.467+0.00000001*(A5-7000000000),0)),0) -> 0
A6: 50000000 | B6: =A6*0.000000001 -> 0.05 | D6: =20 * LOG(EXP(1)) * ($B$1*SQRT(A6) + $E$1*A6 + $G$1*(A6^2) + $I$1*(A6^3)) -> 1.276836254 | E6: =IF(A6<$K$2,,IF(A6<$E$2,D6+0.8+0.0000000002*A6,IF(A6<$M$2,D6+0.8+0.0000000002*$E$2+0.00000001*(A6-$E$2),))) -> 2.086836254 | G6: =IF(B6<12.89,1.083+2.543*SQRT(B6)+0.761*B6,IF(B6<25.78,-17.851+2.936*B6,0)) -> 1.689682087 | I6: =IF(B6<=14,1.076*(0.075+0.537*SQRT(B6)+0.566*B6),IF(B6<18.75,1.076*(-18+2*B6),0)) -> 0.240353491 | K6: =IF(B6<=(25.78/2),1.5+4.6*SQRT(B6)+1.318*B6,IF(B6<25.78,-12.71+3.7*B6,0)) -> 2.59449127 | M6: 2.086849472
A7: 100000000 | B7: 0.1 | D7: 1.835491775 | E7: 2.655491775 | G7: 1.963267209 | I7: 0.3243217979 | K7: 3.086447724 | M7: 2.655509077
A8: 150000000 | B8: 0.15 | D8: 2.277135599 | E8: 3.107135599 | G8: 2.182049665 | I8: 0.3958380253 | K8: 3.479272339 | M8: 3.107155488
A9: 200000000 | B9: 0.2 | D9: 2.658864712 | E9: 3.498864712 | G9: 2.372464173 | I9: 0.460908582 | K9: 3.820782539 | M9: 3.498886417
A10: 250000000 | B10: 0.25 | D10: 3.00279036 | E10: 3.85279036 | G10: 2.54475 | I10: 0.52186 | K10: 4.1295 | M10: 3.852813391
A11: 500000000 | B11: 0.5 | D11: 4.430356099 | E11: 5.330356099 | G11: 3.261672545 | I11: 0.7937827835 | K11: 5.411691193 | M11: 5.330381916
A12: 750000000 | B12: 0.75 | D12: 5.625992364 | E12: 6.575992364 | G12: 3.856052602 | I12: 1.037861871 | K12: 6.472216857 | M12: 6.576017806
A13: 1000000000 | B13: 1 | D13: 6.716412213 | E13: 7.716412213 | G13: 4.387 | I13: 1.267528 | K13: 7.418 | M13: 7.716435751
A14: 1250000000 | B14: 1.25 | D14: 7.750098217 | E14: 8.800098217 | G14: 4.877410433 | I14: 1.487983455 | K14: 8.290456348 | M14: 8.800118955
A15: 1500000000 | B15: 1.5 | D15: 8.751439174 | E15: 9.851439174 | G15: 5.339026208 | I15: 1.701896284 | K15: 9.110826408 | M15: 9.851456544
A16: 1750000000 | B16: 1.75 | D16: 9.734526467 | E16: 10.88452647 | G16: 5.778822792 | I16: 1.910851428 | K16: 9.891728015 | M16: 10.8845401
A17: 2000000000 | B17: 2 | D17: 10.70820092 | E17: 11.90820092 | G17: 6.201345089 | I17: 2.115881567 | K17: 10.64138239 | M17: 11.90821058
A18: 2250000000 | B18: 2.25 | D18: 11.67830498 | E18: 12.92830498 | G18: 6.60975 | I18: 2.317704 | K18: 11.3655 | M18: 12.92831052
A19: 2500000000 | B19: 2.5 | D19: 12.64882679 | E19: 13.94882679 | G19: 7.006336045 | I19: 2.51684099 | K19: 12.06823862 | M19: 13.94882813
A20: 2750000000 | B20: 2.75 | D20: 13.62253758 | E20: 14.97253758 | G20: 7.392838421 | I20: 2.713686802 | K20: 12.75273702 | M20: 14.9725347
A21: 3000000000 | B21: 3 | D21: 14.60137235 | E21: 16.00137235 | G21: 7.770605204 | I21: 2.908547741 | K21: 13.42143371 | M21: 16.00136527
A22: 3250000000 | B22: 3.25 | D22: 15.58666979 | E22: 17.03666979 | G22: 8.140708447 | I22: 3.101667397 | K22: 14.07626793 | M22: 17.03665857
A23: 3500000000 | B23: 3.5 | D23: 16.57933044 | E23: 18.07933044 | G23: 8.504017367 | I23: 3.293243269 | K23: 14.71881199 | M23: 18.07931517
A24: 3750000000 | B24: 3.75 | D24: 17.57992465 | E24: 19.12992465 | G24: 8.861248325 | I24: 3.483438127 | K24: 15.3503617 | M24: 19.12990544
A25: 4000000000 | B25: 4 | D25: 18.58876852 | E25: 20.18876852 | G25: 9.213 | I25: 3.672388 | K25: 15.972 | M25: 20.1887455
A26: 4250000000 | B26: 4.25 | D26: 19.60597884 | E26: 21.25597884 | G26: 9.559778803 | I26: 3.860207954 | K26: 16.58464294 | M26: 21.25595218
A27: 4500000000 | B27: 4.5 | D27: 20.63151363 | E27: 22.33151363 | G27: 9.902017634 | I27: 4.04699635 | K27: 17.18907358 | M27: 22.3314835
A28: 4750000000 | B28: 4.75 | D28: 21.66520258 | E28: 23.41520258 | G28: 10.24009001 | I28: 4.232838058 | K28: 17.78596757 | M28: 23.41516917
A29: 5000000000 | B29: 5 | D29: 22.70677049 | E29: 24.50677049 | G29: 10.57432087 | I29: 4.41780691 | K29: 18.3759127 | M29: 24.506734
A30: 5250000000 | B30: 5.25 | D30: 23.75585539 | E30: 25.60585539 | G30: 10.904995 | I30: 4.601967614 | K30: 18.9594241 | M30: 25.60581604
A31: 5500000000 | B31: 5.5 | D31: 24.81202285 | E31: 26.71202285 | G31: 11.23236364 | I31: 4.785377256 | K31: 19.53695625 | M31: 26.71198089
A32: 5750000000 | B32: 5.75 | D32: 25.87477742 | E32: 27.82477742 | G32: 11.55664978 | I32: 4.968086502 | K32: 20.1089125 | M32: 27.82473308
A33: 6000000000 | B33: 6 | D33: 26.9435718 | E33: 28.9435718 | G33: 11.87805242 | I33: 5.150140567 | K33: 20.67565282 | M33: 28.94352534
A34: 6250000000 | B34: 6.25 | D34: 28.01781432 | E34: 32.51781432 | G34: 12.19675 | I34: 5.33158 | K34: 21.2375 | M34: 30.06776602
A35: 6500000000 | B35: 6.5 | D35: 29.09687516 | E35: 36.09687516 | G35: 12.51290331 | I35: 5.512441332 | K35: 21.79474488 | M35: 31.19682529
A36: 6750000000 | B36: 6.75 | D36: 30.18009135 | E36: 39.68009135 | G36: 12.82665781 | I36: 5.692757612 | K36: 22.34765057 | M36: 32.3300402
A37: 7000000000 | B37: 7 | D37: 31.26677111 | E37: 43.26677111 | G37: 13.13814558 | I37: 5.872558857 | K37: 22.89645603 | M37: 33.46671898
A38: 7250000000 | B38: 7.25 | D38: 32.35619737 | E38: 46.85619737 | G38: 13.44748705 | I38: 6.051872424 | K38: 23.44137906 | M38: =IF(B38>=0.05,IF(B38<=7,0.8+0.00017372*SQRT(A38)+0.0000000011554*A38+2.7795E-19*A38^2-1.0423E-29*A38^3,IF(B38<15,33.467+0.00000001*(A38-7000000000),0)),0) -> 35.967
A39: 7500000000 | B39: 7.5 | D39: 33.44763083 | E39: 50.44763083 | G39: 13.75479232 | I39: 6.230723332 | K39: 23.98261882 | M39: =IF(B39>=0.05,IF(B39<=7,0.8+0.00017372*SQRT(A39)+0.0000000011554*A39+2.7795E-19*A39^2-1.0423E-29*A39^3,IF(B39<15,33.467+0.00000001*(A39-7000000000),0)),0) -> 38.467
A40: 7750000000 | B40: 7.75 | D40: 34.54031252 | E40: 54.04031252 | G40: 14.06016239 | I40: 6.409134531 | K40: 24.52035803 | M40: 40.967
A41: 8000000000 | B41: 8 | D41: 35.63346601 | E41: 57.63346601 | G41: 14.36369018 | I41: 6.587127134 | K41: 25.05476477 | M41: 43.467
A42: 8250000000 | B42: 8.25 | D42: 36.72629928 | E42: 61.22629928 | G42: 14.66546141 | I42: 6.764720616 | K42: 25.58599409 | M42: 45.967
A43: 8500000000 | B43: 8.5 | D43: 37.81800642 | E43: 64.81800642 | G43: 14.96555533 | I43: 6.941932988 | K43: 26.11418936 | M43: 48.467
A44: 8750000000 | B44: 8.75 | D44: 38.90776899 | E44: 68.40776899 | G44: 15.26404544 | I44: 7.118780946 | K44: 26.6394835 | M44: 50.967
A45: 9000000000 | B45: 9 | D45: 39.99475728 | E45: 71.99475728 | G45: 15.561 | I45: 7.29528 | K45: 27.162 | M45: 53.467
A46: 9250000000 | B46: 9.25 | D46: 41.07813145 | E46: 75.57813145 | G46: 15.85648256 | I46: 7.471444592 | K46: 27.68185382 | M46: 55.967
A47: 9500000000 | B47: 9.5 | D47: 42.15704239 | E47: 79.15704239 | G47: 16.1505524 | I47: 7.647288192 | K47: 28.19915221 | M47: 58.467
A48: 9750000000 | B48: 9.75 | D48: 43.23063266 | E48: 82.73063266 | G48: 16.44326495 | I48: 7.822823392 | K48: 28.7139954 | M48: 60.967
A49: 10000000000 | B49: 10 | D49: 44.29803715 | E49: 86.29803715 | G49: 16.73467209 | I49: 7.998061979 | K49: 29.22647724 | M49: 63.467
A50: 10250000000 | B50: 10.25 | D50: 45.35838384 | E50: 89.85838384 | G50: 17.02482247 | I50: 8.173015011 | K50: 29.73668575 | M50: 65.967
A51: 10500000000 | B51: 10.5 | D51: 46.41079428 | E51: 93.41079428 | G51: 17.3137618 | I51: 8.347692872 | K51: 30.24470361 | M51: 68.467
A52: 10750000000 | B52: 10.75 | D52: 47.45438422 | E52: 96.95438422 | G52: 17.60153308 | I52: 8.522105334 | K52: 30.75060861 | M52: 70.967
A53: 11000000000 | B53: 11 | D53: 48.48826402 | E53: 100.488264 | G53: 17.88817684 | I53: 8.696261603 | K53: 31.25447404 | M53: 73.467
A54: 11250000000 | B54: 11.25 | D54: 49.5115391 | E54: 104.0115391 | G54: 18.1737313 | I54: 8.870170365 | K54: 31.75636904 | M54: 75.967
A55: 11500000000 | B55: 11.5 | D55: 50.52331031 | E55: 107.5233103 | G55: 18.45823257 | I55: 9.043839826 | K55: 32.25635896 | M55: 78.467
A56: 11750000000 | B56: 11.75 | D56: 51.52267429 | E56: 111.0226743 | G56: 18.74171482 | I56: 9.217277748 | K56: 32.75450558 | M56: 80.967
A57: 12000000000 | B57: 12 | D57: 52.50872377 | E57: 114.5087238 | G57: 19.02421041 | I57: 9.390491482 | K57: 33.25086743 | M57: 83.467
A58: 12250000000 | B58: 12.25 | D58: 53.48054785 | E58: 117.9805478 | G58: 19.30575 | I58: 9.563488 | K58: 33.7455 | M58: 85.967
A59: 12500000000 | B59: 12.5 | D59: 54.43723228 | E59: 121.4372323 | G59: 19.58636272 | I59: 9.736273917 | K59: 34.23845597 | M59: 88.467
A60: 12750000000 | B60: 12.75 | D60: 55.37785967 | E60: 124.8778597 | G60: 19.86607625 | I60: 9.908855522 | K60: 34.72978539 | M60: 90.967
A61: 13000000000 | B61: 13 | D61: 56.30150972 | E61: 128.3015097 | G61: 20.317 | I61: 10.08123879 | K61: 35.39 | M61: 93.467
A62: 13250000000 | B62: 13.25 | D62: 57.20725941 | E62: 131.7072594 | G62: 21.051 | I62: 10.25342943 | K62: 36.315 | M62: 95.967
A63: 13500000000 | B63: 13.5 | D63: 58.09418317 | E63: 135.0941832 | G63: 21.785 | I63: 10.42543285 | K63: 37.24 | M63: 98.467
A64: 13750000000 | B64: 13.75 | D64: 58.96135305 | E64: 138.4613531 | G64: 22.519 | I64: 10.59725424 | K64: 38.165 | M64: 100.967
A65: 14000000000 | B65: 14 | D65: 59.80783889 | E65: 141.8078389 | G65: 23.253 | I65: 10.76889854 | K65: 39.09 | M65: 103.467
A66: 14250000000 | B66: 14.25 | D66: 60.63270842 | E66: 145.1327084 | G66: 23.987 | I66: 11.298 | K66: 40.015 | M66: 105.967
A67: 14500000000 | B67: 14.5 | D67: 61.43502742 | E67: 148.4350274 | G67: 24.721 | I67: 11.836 | K67: 40.94 | M67: 108.467
A68: 14750000000 | B68: 14.75 | D68: 62.21385982 | E68: 151.7138598 | G68: 25.455 | I68: 12.374 | K68: 41.865 | M68: 110.967
A69: 15000000000 | B69: 15 | D69: =20 * LOG(EXP(1)) * ($B$1*SQRT(A69) + $E$1*A69 + $G$1*(A69^2) + $I$1*(A69^3)) -> 62.96826784 | E69: =IF(A69<$K$2,,IF(A69<$E$2,D69+0.8+0.0000000002*A69,IF(A69<$M$2,D69+0.8+0.0000000002*$E$2+0.00000001*(A69-$E$2),))) -> 0 | G69: 26.189 | I69: 12.912 | K69: 42.79 | M69: 0
A70: 15250000000 | B70: =A70*0.000000001 -> 15.25 | D70: 63.69731203 | E70: 0 | G70: =IF(B70<12.89,1.083+2.543*SQRT(B70)+0.761*B70,IF(B70<25.78,-17.851+2.936*B70,0)) -> 26.923 | I70: =IF(B70<=14,1.076*(0.075+0.537*SQRT(B70)+0.566*B70),IF(B70<18.75,1.076*(-18+2*B70),0)) -> 13.45 | K70: =IF(B70<=(25.78/2),1.5+4.6*SQRT(B70)+1.318*B70,IF(B70<25.78,-12.71+3.7*B70,0)) -> 43.715 | M70: 0
A71: 15500000000 | B71: 15.5 | D71: 64.40005142 | E71: 0 | G71: 27.657 | I71: 13.988 | K71: 44.64 | M71: 0
A72: 15750000000 | B72: 15.75 | D72: 65.07554359 | E72: 0 | G72: 28.391 | I72: 14.526 | K72: 45.565 | M72: 0
A73: 16000000000 | B73: 16 | D73: 65.72284474 | E73: 0 | G73: 29.125 | I73: 15.064 | K73: 46.49 | M73: 0
A74: 16250000000 | B74: 16.25 | D74: 66.34100976 | E74: 0 | G74: 29.859 | I74: 15.602 | K74: 47.415 | M74: 0
A75: 16500000000 | B75: 16.5 | D75: 66.92909234 | E75: 0 | G75: 30.593 | I75: 16.14 | K75: 48.34 | M75: 0
A76: 16750000000 | B76: 16.75 | D76: 67.48614498 | E76: 0 | G76: 31.327 | I76: 16.678 | K76: 49.265 | M76: 0
A77: 17000000000 | B77: 17 | D77: 68.01121909 | E77: 0 | G77: 32.061 | I77: 17.216 | K77: 50.19 | M77: 0
A78: 17250000000 | B78: 17.25 | D78: 68.50336503 | E78: 0 | G78: 32.795 | I78: 17.754 | K78: 51.115 | M78: 0
A79: 17500000000 | B79: 17.5 | D79: 68.96163217 | E79: 0 | G79: 33.529 | I79: 18.292 | K79: 52.04 | M79: 0
A80: 17750000000 | B80: 17.75 | D80: 69.38506892 | E80: 0 | G80: 34.263 | I80: 18.83 | K80: 52.965 | M80: 0
A81: 18000000000 | B81: 18 | D81: 69.77272282 | E81: 0 | G81: 34.997 | I81: 19.368 | K81: 53.89 | M81: 0
A82: 18250000000 | B82: 18.25 | D82: 70.12364053 | E82: 0 | G82: 35.731 | I82: 19.906 | K82: 54.815 | M82: 0
A83: 18500000000 | B83: 18.5 | D83: 70.4368679 | E83: 0 | G83: 36.465 | I83: 20.444 | K83: 55.74 | M83: 0
A84: 18750000000 | B84: 18.75 | D84: 70.71145003 | E84: 0 | G84: 37.199 | I84: 0 | K84: 56.665 | M84: 0
A85: 19000000000 | B85: 19 | D85: 70.94643125 | E85: 0 | G85: 37.933 | I85: 0 | K85: 57.59 | M85: 0
A86: 19250000000 | B86: 19.25 | D86: 71.14085521 | E86: 0 | G86: 38.667 | I86: 0 | K86: 58.515 | M86: 0
A87: 19500000000 | B87: 19.5 | D87: 71.29376485 | E87: 0 | G87: 39.401 | I87: 0 | K87: 59.44 | M87: 0
A88: 19750000000 | B88: 19.75 | D88: 71.40420252 | E88: 0 | G88: 40.135 | I88: 0 | K88: 60.365 | M88: 0
A89: 20000000000 | B89: 20 | D89: 71.4712099 | E89: 0 | G89: 40.869 | I89: 0 | K89: 61.29 | M89: 0
A90: 20250000000 | B90: 20.25 | D90: 71.49382813 | E90: 0 | G90: 41.603 | I90: 0 | K90: 62.215 | M90: 0
A91: 20500000000 | B91: 20.5 | D91: 71.47109775 | E91: 0 | G91: 42.337 | I91: 0 | K91: 63.14 | M91: 0
A92: 20750000000 | B92: 20.75 | D92: 71.40205878 | E92: 0 | G92: 43.071 | I92: 0 | K92: 64.065 | M92: 0
A93: 21000000000 | B93: 21 | D93: 71.28575073 | E93: 0 | G93: 43.805 | I93: 0 | K93: 64.99 | M93: 0
A94: 21250000000 | B94: 21.25 | D94: 71.12121261 | E94: 0 | G94: 44.539 | I94: 0 | K94: 65.915 | M94: 0
A95: 21500000000 | B95: 21.5 | D95: 70.90748294 | E95: 0 | G95: 45.273 | I95: 0 | K95: 66.84 | M95: 0
A96: 21750000000 | B96: 21.75 | D96: 70.6435998 | E96: 0 | G96: 46.007 | I96: 0 | K96: 67.765 | M96: 0
A97: 22000000000 | B97: 22 | D97: 70.32860084 | E97: 0 | G97: 46.741 | I97: 0 | K97: 68.69 | M97: 0
A98: 22250000000 | B98: 22.25 | D98: 69.96152327 | E98: 0 | G98: 47.475 | I98: 0 | K98: 69.615 | M98: 0
A99: 22500000000 | B99: 22.5 | D99: 69.54140391 | E99: 0 | G99: 48.209 | I99: 0 | K99: 70.54 | M99: 0
A100: 22750000000 | B100: 22.75 | D100: 69.06727921 | E100: 0 | G100: 48.943 | I100: 0 | K100: 71.465 | M100: 0
A101: 23000000000 | B101: 23 | D101: 68.5381852 | E101: 0 | G101: 49.677 | I101: 0 | K101: 72.39 | M101: 0
A102: 23250000000 | B102: 23.25 | D102: 67.95315761 | E102: 0 | G102: 50.411 | I102: 0 | K102: 73.315 | M102: 0
A103: 23500000000 | B103: 23.5 | D103: 67.31123177 | E103: 0 | G103: 51.145 | I103: 0 | K103: 74.24 | M103: =IF(B103>=0.05,IF(B103<=7,0.8+0.00017372*SQRT(A103)+0.0000000011554*A103+2.7795E-19*A103^2-1.0423E-29*A103^3,IF(B103<15,33.467+0.00000001*(A103-7000000000),0)),0) -> 0
A104: 23750000000 | B104: 23.75 | D104: 66.61144272 | E104: 0 | G104: 51.879 | I104: 0 | K104: 75.165 | M104: 0
A105: 24000000000 | B105: 24 | D105: 65.85282516 | E105: 0 | G105: 52.613 | I105: 0 | K105: 76.09 | M105: 0
A106: 24250000000 | B106: 24.25 | D106: 65.03441348 | E106: 0 | G106: 53.347 | I106: 0 | K106: 77.015 | M106: 0
A107: 24500000000 | B107: 24.5 | D107: 64.15524178 | E107: 0 | G107: 54.081 | I107: 0 | K107: 77.94 | M107: 0
A108: 24750000000 | B108: 24.75 | D108: 63.21434388 | E108: 0 | G108: 54.815 | I108: 0 | K108: 78.865 | M108: 0
A109: 25000000000 | B109: 25 | D109: 62.21075331 | E109: 0 | G109: 55.549 | I109: 0 | K109: 79.79 | M109: 0
A110: 25250000000 | B110: 25.25 | D110: 61.14350334 | E110: 0 | G110: 56.283 | I110: 0 | K110: 80.715 | M110: 0
A111: 25500000000 | B111: 25.5 | D111: 60.01162698 | E111: 0 | G111: 57.017 | I111: 0 | K111: 81.64 | M111: 0
A112: 25750000000 | B112: 25.75 | D112: 58.81415699 | E112: 0 | G112: 57.751 | I112: 0 | K112: 82.565 | M112: 0
A113: 26000000000 | B113: 26 | D113: 57.5501259 | E113: 0 | G113: 0 | I113: 0 | K113: 0 | M113: 0
A114: 26250000000 | B114: 26.25 | D114: 56.21856598 | E114: 0 | G114: 0 | I114: 0 | K114: 0 | M114: 0
A115: 26500000000 | B115: 26.5 | D115: 54.81850932 | E115: 0 | G115: 0 | I115: 0 | K115: 0 | M115: 0
A116: 26750000000 | B116: 26.75 | D116: 53.34898776 | E116: 0 | G116: 0 | I116: 0 | K116: 0 | M116: 0
A117: 27000000000 | B117: 27 | D117: 51.80903293 | E117: 0 | G117: 0 | I117: 0 | K117: 0 | M117: 0
A118: 27250000000 | B118: 27.25 | D118: 50.19767627 | E118: 0 | G118: 0 | I118: 0 | K118: 0 | M118: 0
A119: 27500000000 | B119: 27.5 | D119: 48.51394902 | E119: 0 | G119: 0 | I119: 0 | K119: 0 | M119: 0
A120: 27750000000 | B120: 27.75 | D120: 46.75688222 | E120: 0 | G120: 0 | I120: 0 | K120: 0 | M120: 0
A121: 28000000000 | B121: 28 | D121: 44.92550674 | E121: 0 | G121: 0 | I121: 0 | K121: 0 | M121: 0
A122: 28250000000 | B122: 28.25 | D122: 43.01885327 | E122: 0 | G122: 0 | I122: 0 | K122: 0 | M122: 0
A123: 28500000000 | B123: 28.5 | D123: 41.03595231 | E123: 0 | G123: 0 | I123: 0 | K123: 0 | M123: 0
A124: 28750000000 | B124: 28.75 | D124: 38.97583421 | E124: 0 | G124: 0 | I124: 0 | K124: 0 | M124: 0
A125: 29000000000 | B125: 29 | D125: 36.83752914 | E125: 0 | G125: 0 | I125: 0 | K125: 0 | M125: 0
A126: 29250000000 | B126: 29.25 | D126: 34.62006714 | E126: 0 | G126: 0 | I126: 0 | K126: 0 | M126: 0
A127: 29500000000 | B127: 29.5 | D127: 32.32247806 | E127: 0 | G127: 0 | I127: 0 | K127: 0 | M127: 0
A128: 29750000000 | B128: 29.75 | D128: 29.94379163 | E128: 0 | G128: 0 | I128: 0 | K128: 0 | M128: 0
A129: 30000000000 | B129: 30 | D129: 27.48303743 | E129: 0 | G129: 0 | I129: 0 | K129: 0 | M129: 0
